Workbook

Sheet Calculation Sheet
B1: TPS2597xx Design Calculation Tool
P2: Table - 1: Device Comparison Table
C3: Constants Cells | P3: Part number | Q3: Overvoltage Response | R3: Overcurrent response | S3: DNC or PG | T3: FLT or PGTH | U3: Response to Thermal Shutdown (TSD) | W3: 3.89 | X3: 5.76 | Y3: 13.88
C4: Input/SelectCells | P4: TPS25970A | Q4: Adjustable OVLO | R4: Active Current Limit | S4: DNC | T4: FLT | U4: Auto-Retry | W4: Short | X4: Open | Y4: 390
C5: Calculation Cells | P5: TPS25970L | Q5: Adjustable OVLO | R5: Active Current Limit | S5: DNC | T5: FLT | U5: Latch-off
C6: Calculated, but can be over-ridden by user | P6: TPS25972A | Q6: Pin Selectable OVC (3.8 V/5.7 V/13.8 V) | R6: Active Current Limit | S6: PG | T6: PGTH | U6: Auto-Retry
C7: Error Cells, Must be Fixed | P7: TPS25972L | Q7: Pin Selectable OVC(3.8 V/5.7 V/13.8 V) | R7: Active Current Limit | S7: PG | T7: PGTH | U7: Latch-off
P8: TPS25974A | Q8: Adjustable OVLO | R8: Circuit Breaker | S8: PG | T8: PGTH | U8: Auto-retry
B9: Parameter | C9: Description | D9: Value | E9: Units | F9: Tolerance | G9: Recommended Value | P9: TPS25974L | Q9: Adjustable OVLO | R9: Circuit Breaker | S9: PG | T9: PGTH | U9: Latch-off
B10: Select Device | C10: Refer to Table-1 on top right side and select based on OverVoltage Clamp/Lockout,Overcurrent response and Latch-off/Auto-retry requirement | D10: TPS25970A
B11: VIN (max) | C11: Maximum Operating input voltage (magnitude) | D11: 12 | E11: V
B12: VIN (max) | C12: Maximum Operating input voltage (magnitude) | D12: 12 | E12: V
B13: VCLAMP | C13: Desired Over Voltage Clamp | D13: 13.88 | E13: V | F13: 0.035
B14: VIN (max) Selected | C14: Maximum Operating input voltage selected from D6 and D7 | D14: =IF(D10=P4,D12, IF(D10=P5,D12, IF(D10=P6,D11, IF(D10=P7,D11,IF(D10=P8,D12,D12))))) -> 12 | E14: V
B15: OVLO Set Point | C15: Desired Over Voltage Lockout Set Point | D15: 13.2 | E15: V | F15: 0.03
B16: UVLO Set Point | C16: Desired Undervoltage Threshold (VIN Rising) | D16: 10.8 | E16: V | F16: 0.03
B17: VUVP | C17: Internal Undervoltage Protection Threshold (VIN Rising) | D17: 2.53 | E17: V | F17: 0.03
B18: Cout | C18: Load Capacitance | D18: 470 | E18: uF | F18: 0.1
C19: Is there downstream load present other than cap at startup? | D19: YES
B20: VONTH (CR) (V) | C20: constant resistance load turn on threshold voltage | D20: 0 | E20: V
B21: RLOAD (STARTUP) (Ω) | C21: CR load at startup | D21: 100 | E21: Ohm
B22: VONTH (CC) (V) | C22: constant current load turn on threshold voltage | D22: 1 | E22: V
B23: ILOAD (STARTUP) (A) | C23: CC load at startup | D23: 0 | E23: A
B24: VONTH (CP) (V) | C24: constant power load turn on threshold voltage | D24: 1 | E24: V
B25: PLOAD (STARTUP) (W) | C25: CP load at startup | D25: 0 | E25: W
B26: Istartup(A) | C26: It is sum of max downstream load current and load cap charge current during startup .It should be <Imax | D26: =(Vcc_max/Rlstart+D23+D25/D24+Icharge/1000) -> 0.3969642857 | E26: A
B27: Imax | C27: Maximum continuous load current (magnitude) | D27: 7 | E27: A
B28: Ilimit | C28: Current Limit, 10.5% higher than maximum continuous load current | D28: =IF(1.105*Imax<0.8, 0.8, IF(1.105*Imax>8, 8,1.105*Imax )) -> 7.735 | E28: A
B29: tITIMER | C29: Load transient blanking interval | D29: 2 | E29: ms
B30: TA, MAX | C30: Maximum Operating Ambient temperature | D30: 35 | E30: °C
B32: OVC set point calculations (TPS25972x)
B33: VOVC | C33: Over Voltage Clamp | D33: =D13 -> 13.88 | E33: V | F33: 0.035
B34: R_OVCSEL | C34: Calculated value of Resistor at OVCSEL pin | D34: =INDEX(W4:Y4,MATCH(D33,W3:Y3)) -> 390 | E34: kOhm
B36: UVLO set point calculations (TPS25972x)
B37: UVLO Set Point | C37: Desired Undervoltage Threshold (VIN Rising) | D37: =D16 -> 10.8 | E37: V | F37: 0.03
B38: R1: Pullup at EN/UVLO Pin | C38: Value > 350k recommended | D38: 470 | E38: kOhm | F38: 0.01 | K38: =D43 -> 9.862711864 | L38: Power Fail (VIN Falling)
B39: R2_cal | C39: Calculated value of Resistor at EN/UVLO pin | D39: =D38/(D37/OVref -1) -> 58.75 | E39: kOhm | K39: =D42 -> 10.75932203 | L39: Release UVLO (VIN Rising)
B40: SELECT THE VALUE OF RESISTORS AS CLOSEST AVAILABLE VALUE OF R2 | K40: =D33 -> 13.88 | L40: OV Clamp (VIN Rising)
B41: R2 | C41: Select the closest possible value as R2_cal | D41: =G41 -> 59 | E41: kOhm | F41: =F38 -> 0.01 | G41: =L62/L61*D39 -> 59
B42: UV_final_rising | C42: Undervoltage Threshold (VIN Rising) | D42: =OVref*(1+D38/D41) -> 10.75932203 | E42: V | F42: =SQRT(F128^2+F38^2+F41^2) -> 0.0331662479
B43: UV_final_falling | C43: Undervoltage Threshold (VIN Falling) | D43: =UVref*(1+D38/D41) -> 9.862711864 | E43: V | F43: =SQRT(F127^2+F38^2+F41^2) -> 0.06456779383
B44: I_R12 | C44: Current in R1, R2 Branch | D44: =D11*1000/(D38+D41) -> 22.68431002 | E44: uA
B47: UVLO, OVLO set point calculations (TPS25970x and TPS25974x) | L47: R2+R3
B48: UVLO Set Point | C48: Desired Undervoltage Threshold (VIN Rising) | D48: =D16 -> 10.8 | L48: =(OVref*D50)/(D48-OVref) -> 58.75
B49: OVLO Set Point | C49: Desired Over Voltage Lockout Set Point | D49: =D15 -> 13.2 | J49: =D57 -> 9.803703704 | K49: Power Fail (VIN Falling) | L49: R2
B50: R1: Pullup at EN/OVLO Pin | C50: Value > 350K recommended | D50: 470 | E50: kOhm | F50: 0.01 | J50: =D56 -> 10.69494949 | K50: Release UVLO (VIN Rising) | L50: =IF(D51>=10000,D51/100,IF(D51>=1000,D51/10,IF(D51>=100,D51,IF(D51>=10,D51*10,D51*100)))) -> 106.8181818
B51: R2_cal | C51: Calculated value of Resistor at EN/OVLO pin | D51: =L48-D52 -> 10.68181818 | E51: kOhm | J51: =D59 -> 11.95770021 | K51: Release OVLO (VIN Falling) | L51: =INDEX('Res EIA Tables'!E$5:E$197,2+MATCH(L50,'Res EIA Tables'!E$5:E$197)) -> 107
B52: R3_cal | C52: Calculated value of Resistor at EN/OVLO pin | D52: =(D50+L48)*OVref/D49 -> 48.06818182 | E52: kOhm | J52: =D58 -> 13.04476386 | K52: OV Cutoff (VIN Rising) | L52: R3
B53: SELECT THE VALUE OF RESISTORS AS CLOSEST AVAILABLE VALUE OF R2 & R3 | L53: =IF(D52>=10000,D52/100,IF(D52>=1000,D52/10,IF(D52>=100,D52,IF(D52>=10,D52*10,D52*100)))) -> 480.6818182 | S53: R2+R3
B54: R2 | C54: Select the closest possible value as R2_cal | D54: =G54 -> 10.7 | E54: kOhm | F54: 0.01 | G54: =L51*D51/L50 -> 10.7 | L54: =INDEX('Res EIA Tables'!E$5:E$197,2+MATCH(L53,'Res EIA Tables'!E$5:E$197)) -> 487 | S54: =(OVref*K56)/(K54-OVref) -> 0
B55: R3 | C55: Select the closest possible value as R3_cal | D55: =G55 -> 48.7 | E55: kOhm | F55: 0.01 | G55: =L54*D52/L53 -> 48.7 | Q55: =K63 -> 0 | R55: Power Fail (VIN Falling) | S55: R2
B56: UV_final_rising | C56: Undervoltage Threshold (VIN Rising) | D56: =OVref*(D50+D54+D55)/(D54+D55) -> 10.69494949 | E56: V | F56: =SQRT(F128^2+F50^2+F54^2+F55^2) -> 0.03464101615 | L56: =IF(D64>=100,D64,IF(D64>=10,D64*10,D64*100)) -> 0 | Q56: =K62 -> 0 | R56: Release UVLO (VIN Rising) | S56: =IF(K57>=10000,K57/100,IF(K57>=1000,K57/10,IF(K57>=100,K57,IF(K57>=10,K57*10,K57*100)))) -> 0
B57: UV_final_falling | C57: Undervoltage Threshold (VIN Falling) | D57: =UVref*(D50+D54+D55)/(D54+D55) -> 9.803703704 | E57: V | F57: =SQRT(F127^2+F50^2+F54^2+F55^2) -> 0.0653375849 | L57: =IF(L56>1000,INDEX('Res EIA Tables'!E$5:E$197,MATCH(L56/10,'Res EIA Tables'!E$5:E$197))*10,INDEX('Res EIA Tables'!E$5:E$197,MATCH(L56,'Res EIA Tables'!E$5:E$197))) ->  | Q57: =K65 -> 0 | R57: Release OVLO (VIN Falling) | S57: =INDEX('Res EIA Tables'!L$5:L$197,2+MATCH(S56,'Res EIA Tables'!L$5:L$197)) -> 
B58: OV_final_rising | C58: Overvoltage Threshold (VIN Rising) | D58: =OVref*(D50+D54+D55)/(D55) -> 13.04476386 | E58: V | F58: =SQRT(F128^2+F50^2+F54^2+F55^2) -> 0.03464101615 | Q58: =K64 -> 0 | R58: OV Cutoff (VIN Rising) | S58: R3
B59: OV_final_falling | C59: Overvoltage Threshold (VIN Falling) | D59: =UVref*(D50+D54+D55)/(D55) -> 11.95770021 | E59: V | F59: =SQRT(F127^2+F50^2+F54^2+F55^2) -> 0.0653375849 | L59: =IF(D68>=10000,D68/100,IF(D68>=1000,D68/10,IF(D68>=100,D68,IF(D68>=10,D68*10,D68*100)))) -> 552.9411765 | S59: =IF(K58>=10000,K58/100,IF(K58>=1000,K58/10,IF(K58>=100,K58,IF(K58>=10,K58*10,K58*100)))) -> 0
B60: I_R123 | C60: Current in R1, R2 and R3 Branch | D60: =D12*1000/(D50+D54+D55) -> 22.66717038 | E60: uA | L60: =INDEX('Res EIA Tables'!E$5:E$197,2+MATCH(L59,'Res EIA Tables'!E$5:E$197)) -> 562 | S60: =INDEX('Res EIA Tables'!L$5:L$197,2+MATCH(S59,'Res EIA Tables'!L$5:L$197)) -> 
L61: =IF(D39>=10000,D39/100,IF(D39>=1000,D39/10,IF(D39>=100,D39,IF(D39>=10,D39*10,D39*100)))) -> 587.5
L62: =INDEX('Res EIA Tables'!E$5:E$197,2+MATCH(L61,'Res EIA Tables'!E$5:E$197)) -> 590 | S62: =IF(K70>=100,K70,IF(K70>=10,K70*10,K70*100)) -> 0
L63: =IF(D76>=10000,D76/100,IF(D76>=1000,D76/10,IF(D76>=100,D76,IF(D76>=10,D76*10,D76*100)))) -> 746.6063348 | S63: =IF(S62>1000,INDEX('Res EIA Tables'!L$5:L$197,MATCH(S62/10,'Res EIA Tables'!L$5:L$197))*10,INDEX('Res EIA Tables'!L$5:L$197,MATCH(S62,'Res EIA Tables'!L$5:L$197))) -> 
L64: =INDEX('Res EIA Tables'!E$5:E$197,2+MATCH(L63,'Res EIA Tables'!E$5:E$197)) -> 750
B65: PGset point calculations(TPS25972x and TPS25974x) | S65: =IF(K74>=10000,K74/100,IF(K74>=1000,K74/10,IF(K74>=100,K74,IF(K74>=10,K74*10,K74*100)))) -> 0
B66: Desired PG threshold | C66: Power good voltage threshold | D66: 11.4 | E66: V | F66: 0.03 | S66: =INDEX('Res EIA Tables'!L$5:L$197,2+MATCH(S65,'Res EIA Tables'!L$5:L$197)) -> 
B67: R4: Pullup at PGTH pin | C67: Select a value > 100k to keep I_R45 low | D67: 47 | E67: kOhm | F67: 0.01 | S67: =IF(K45>=10000,K45/100,IF(K45>=1000,K45/10,IF(K45>=100,K45,IF(K45>=10,K45*10,K45*100)))) -> 0
B68: R5_cal | C68: Calculated value of Resistor at PGTH pin | D68: =D67*PGTH/(D66-PGTH) -> 5.529411765 | E68: kOhm
B69: SELECT THE VALUE OF RESISTOR AS CLOSEST AVAILABLE VALUE OF R5
B70: R5 | C70: Select the closest possible value as R5_cal | D70: =D68*L60/L59 -> 5.62 | E70: kOhm | F70: 0.01
B71: PG_final_rising | C71: Power Good Threshold (Rising) | D71: =1.2*(D67+D70)/D70 -> 11.23558719 | E71: V | F71: =SQRT(F128^2+F67^2+F70^2) -> 0.0331662479
B72: PG_final_falling | C72: Power Good Threshold (Falling) | D72: =1.1*(D67+D70)/D70 -> 10.29928826 | E72: V | F72: =SQRT(F127^2+F67^2+F70^2) -> 0.06456779383
B73: I_R45 | C73: Current in R4, R5 Branch | D73: =D12*1000/(D67+D70) -> 228.050171 | E73: uA
B75: Calculations for Ilimit (resistor on ILM Pin) | K75: =Icharge*(10^-3) -> 0.2769642857 | L75: Inrush Charging Current
B76: RILM_Cal | C76: Calculated current limit resistor | D76: =5775/(Ilimit) -> 746.6063348 | E76: Ohm | K76: =Ilimit_final -> 7.7 | L76: Overload Curr Limit
B77: SELECT A ILIMIT RESISTOR WITH THE CLOSEST AVAILABLE VALUE OF Rilm_Cal
B78: RILM | C78: Select the closest available value of RLM_cal | D78: =G78 -> 750 | E78: Ohm | F78: 0.01 | G78: =L64/L63*D76 -> 750
B79: Ilimit_final | C79: Final current Limit Set Point | D79: =5775/D78 -> 7.7 | E79: A | F79: =SQRT(0.105^2+F78^2) -> 0.1054751155
B80: Isc | C80: Scalable fast trip threshold | D80: =2*Ilimit_final -> 15.4 | E80: A | F80: =F79 -> 0.1054751155
B82: Calculations for SoftStart control (external cap on dVdt pin)
B83: Parameter | C83: Description | D83: Value | E83: Units | F83: Tolerance
B84: I_dVdt | C84: Internal charging current on dVdt | D84: 3.35 | E84: uA | F84: 0.104
B85: Icharge_fastest | C85: Charging current when charging at fastest possible rate | D85: =Cout*(Vcc_max/D86)/1000 -> 9.776 | E85: A
B86: Tchg_fastest | C86: when no external capacitor is connected (max. slew rate) | D86: =Vcc_max/(1.24*Vcc_max+5.92) -> 0.5769230769 | E86: ms | F86: 0.15
B87: Tchg_req | C87: The charging time required | D87: 20 | E87: ms
B88: Icharge_req | C88: Charging (inrush) current desired in the system | D88: 1 | E88: A
B89: Cext_dvdt_cal1 | C89: calculated value of capacitor at dVdT pin for required Tcharge | D89: =IF(Tchg_req<D86, 0, (3300*Tchg_req/Vcc_max)) -> 5500 | E89: pF
B90: Cext_dvdt_cal2 | C90: calculated value of capacitor at dVdT pin for required Icharge | D90: =(3300*Cout/Icharge_req/1000) -> 1551 | E90: pF
B91: SELECT A CAPACITOR WITH THE CLOSEST POSSIBLE VALUE to max(Cext_dvdt_cal1, Cext_dvdt_cal2) | G91: =(MAX(D89,D90))/1000 -> 5.5
B92: CdVdT_ext | C92: The external capacitor connecetd across dVdT pin (OPEN, or >=1nF) | D92: =G93 -> 5.6 | E92: nf | F92: 0.1
B93: Icharge | C93: Charging Current through load cap as per dVdT setting | D93: =IF(Cdvdt_ext="OPEN",D85*1000,(Cout*3300/Cdvdt_ext/1000)) -> 276.9642857 | E93: mA | F93: =SQRT(F95^2+F18^2) -> 0.1414213562 | G93: =IF(G91>1,INDEX('Cap Tables'!B4:B75,1+MATCH(G91,'Cap Tables'!B4:B75)),(INDEX('Cap Tables'!A4:A75,1+MATCH(G91*10,'Cap Tables'!A4:A75))/10)) -> 5.6
B94: Does Device Enter Current Limit during start-up? | D94: =((D26) >= Ilimit_final) -> FALSE | G94: =Cout*0.001*Rlstart*(Ilimit_final/Icharge -1+LN(Icharge/(Ilimit_final-Vcc_max/Rlstart))) -> 123.4303089
B95: Tchg_dvdt | C95: charge time set | D95: =IF(D94, G94, IF(Cdvdt_ext="OPEN",D86,Vcc_max*Cdvdt_ext*1000/3300)) -> 20.36363636 | E95: ms | F95: =F92 -> 0.1
C97: Will the System have glitch-free startup? | D97: =TSD!C7 -> YES
B98: For CdVdt > 10 nF, it's recommended to add a 100-Ω resistor in series with the capacitor on the dVdt pin | D98: If glitch-free startup field shows NO then it is a confirmed failed startup.If glitch-free startup field shows Marginal then device may or may not start. In both these cases the dvdt cap and downstream load current have to be adjusted.
D99: If downstream load current value is very large as compared to inrush current due to load cap then to have glitch-free startup , downstream load current value has to be decreased or dvdt cap has to be decreased until the startup field shows YES
D100: If inrush current due to load cap is very high as compared to downstream load then decreasing output cap or increasing dvdt cap will help in glitch-free startup.
B104: Steady state Voltage drop & Power dissipation
B105: Parameter | C105: Description | D105: Value | E105: Units | F105: Tolerance
B106: Vdrop | C106: Maximum voltage drop across device @ 25 degC | D106: =Imax*Rdson_25deg -> 77 | E106: mV
B107: Pdiss_Imax | C107: Steady state power dissipation with Max current @ 25degC | D107: =Imax^2*Rdson_25deg -> 539 | E107: mW
B109: Setting Overcurrent Blanking Interval (tITIMER)
B110: Parameter | C110: Description | D110: Value | E110: Units | F110: Tolerance
B111: CITIMER_cal | C111: Calculated Capacitor value at ITIMER pin | D111: =D29*1.95/1.51 -> 2.582781457 | E111: nF
B112: CITIMER_sel | C112: Select Closest value as CITIMER_cal | D112: =G112 -> 2.7 | E112: nF | F112: 0.1 | G112: =INDEX('Cap Tables'!B4:B75,1+MATCH(D111,'Cap Tables'!B4:B75)) -> 2.7
B113: tITIMER_final | C113: Final Load transient blanking interval | D113: =D112*1.95/1.51 -> 3.486754967 | E113: ms
B115: Parameters internal to Device
B116: Internal FET Parameters
B117: Parameter | C117: Description | D117: Value | E117: Units | F117: Tolerance
B118: VIN(Max) | C118: Maximum input voltage | D118: 23 | E118: V
B119: ID(max) | C119: FET drain-source current rating (maximum) | D119: 7 | E119: A
B120: Rds(on)(typ) | C120: FET Rds(on) for –40°C ≤ TJ ≤ 125°C | D120: 11 | E120: mOhm
B122: Thermal Parameters
B123: Tj(max) | C123: Deice maximum junction temperature | D123: 154 | E123: C
B124: RJA | C124: Junction to ambient thermal resistance | D124: 49.7 | E124: C/W
B126: Internal References
B127: UVref | C127: Internal Undervoltage reference (Falling) | D127: 1.1 | E127: V | F127: 0.063
B128: OVref | C128: Internal Overvoltage reference (Rising) | D128: 1.2 | E128: V | F128: 0.03
B129: GainIMON | C129: Current monitor gain | D129: 105.5 | E129: uA/A | F129: 0.037
B130: PGTH | C130: Internal Power good reference(Rising) | D130: 1.2 | E130: v

Sheet TSD
B2: VIN (V) | C2: =Vcc_max -> 12
E4: VDS | F4: 5.469 | AC4: CLOAD (µF) | AD4: =Cout -> 470
E5: MAX FET temp | F5: MAX TREL | AC5: RLOAD (STARTUP) (Ω) | AD5: =Rlstart -> 100
B6: MAX AMBIENT TEMPERATURE (⁰C) | C6: ='Calculation Sheet'!D30 -> 35 | E6: =MAX(P27:P2027) -> 46.70835067 | F6: =MAX(AF27:AF2027) -> 4.241076006 | AC6: VONTH (CR) (V) | AD6: ='Calculation Sheet'!D20 -> 0
B7: successful startup | C7: =IF(AND(F6<34.01,E6<146.01),"YES",IF(AND(F6<36,E6<160),"MARGINAL",IF(OR(F6>=36,E6>=160),"NO","Unable to decide"))) -> YES | AC7: ILOAD (STARTUP) (A) | AD7: ='Calculation Sheet'!D23 -> 0
AC8: VONTH (CC) (V) | AD8: ='Calculation Sheet'!D22 -> 1
AC9: PLOAD (STARTUP) (W) | AD9: ='Calculation Sheet'!D25 -> 0
AC10: VONTH (CP) (V) | AD10: ='Calculation Sheet'!D24 -> 1
AC11: TSTARTUP (ms) | AD11: =Tchg_dvdt -> 20.36363636
B12: CTS | F12: Sensor TS due to HFET | AC12: SLEW RATE (mV/µs) | AD12: =Vcc_max/Tchg_dvdt -> 0.5892857143
B13: τ (s) | C13: R (Ω) | D13: C (F) | F13: τ (s) | G13: R (Ω) | H13: C (F) | AC13: IINRUSH (A) | AD13: =Icharge/1000 -> 0.2769642857
B14: 0.03 | C14: 0.9525813156 | D14: =B14/C14 -> 0.03149337438 | F14: 0.03 | G14: 1.277868102 | H14: =F14/G14 -> 0.02347660135
B15: 0.004579159375 | C15: 0.3947578367 | D15: 0.01159992013 | F15: 0.03 | G15: 2.381174314 | H15: 0.01259882564
B16: 0.004579158613 | C16: 0.3804570603 | D16: 0.01203594069 | F16: 9.499036935e-05 | G16: 0.1994420717 | H16: 0.0004762804985
B17: 0.03 | C17: 3.213326288 | D17: 0.009336120055 | F17: 8.691994115e-05 | G17: 0.02628130329 | H17: 0.003307291887
B18: 0.03 | C18: 4.460259287 | D18: 0.006726066372 | F18: 0.0003996281495 | G18: 0.5990026892 | H18: 0.0006671558519
F19: 0.002039133141 | G19: 0.6362573222 | H19: 0.003204887504
F20: 0.002035856007 | G20: 0.675307054 | H20: 0.003014711596
F21: 0.03 | G21: 2.671320966 | H21: 0.01123039889
F22: 3.56747026e-05 | G22: 0.07559976344 | H22: 0.0004718890771
F23: 0.002048224443 | G23: 0.2939239917 | H23: 0.006968551397
F24: 0.03 | G24: 3.353548206 | H24: 0.008945748847
A26: SERIAL NO. | B26: TIME (ms) | C26: VOUT (V) | D26: P_INRUSH (W) | E26: HFET τ1 | F26: HFET τ2 | G26: HFET τ3 | H26: HFET τ4 | I26: HFET τ5 | J26: HFET τ6 | K26: HFET τ7 | L26: HFET τ8 | M26: HFET τ9 | N26: HFET τ10 | O26: HFET τ11 | P26: HFET TEMPERATURE (⁰C) | Q26: CONTROLLER τ1 | R26: CONTROLLER τ2 | S26: CONTROLLER τ3 | T26: CONTROLLER τ4 | U26: CONTROLLER τ5 | Z26: CONTROLLER TEMPERATURE (⁰C) | AC26: ICR | AD26: ICC | AE26: ICP | AF26: FET-cont temp
A27: 0 | B27: =($AD$11/2000)*(A27) -> 0 | C27: =$AD$13*B27*10^-3/($AD$4*10^-6) -> 0 | D27: =(Vcc_max-C27)*($AD$13+IF(C27>=$AD$8,$AD$7,0)+(IF(C27>=$AD$6,C27,0)/$AD$5)+IF(C27>$AD$10,($AD$9/C27),0)) -> 3.323571429 | E27: 0 | F27: 0 | G27: 0 | H27: 0 | I27: 0 | J27: 0 | K27: 0 | L27: 0 | M27: 0 | N27: 0 | O27: 0 | P27: =$C$6 -> 35 | Q27: 0 | R27: 0 | S27: 0 | T27: 0 | U27: 0 | Z27: =$C$6 -> 35 | AA27: =IF((P27-Z27)>=64,1,0) -> 0 | AB27: =IF((P27>=154),1,0) -> 0 | AC27: =IF(C27>=$AD$6,C27,0)/$AD$5 -> 0 | AD27: =IF(C27>=$AD$8,$AD$7,0) -> 0 | AE27: =IF(C27>$AD$10,($AD$9/C27),0) -> 0 | AF27: =(P27-Z27)*IF((Vcc_max-C27)>$F$4,1,0) -> 0
A28: 1 | B28: =($AD$11/2000)*(A28) -> 0.01018181818 | C28: =$AD$13*B28*10^-3/($AD$4*10^-6) -> 0.006 | D28: 3.322629283 | E28: =(D27+((((EXP(-(B28-B27)*10^-3/$F$14)))*(E27-D27)))) -> 0.001127808603 | F28: =(D27+((((EXP(-(B28-B27)*10^-3/$F$15)))*(F27-D27)))) -> 0.001127808603 | G28: =(D27+((((EXP(-(B28-B27)*10^-3/$F$16)))*(G27-D27)))) -> 0.3378182488 | H28: =(D27+((((EXP(-(B28-B27)*10^-3/$F$17)))*(H27-D27)))) -> 0.3673859458 | I28: =(D27+((((EXP(-(B28-B27)*10^-3/$F$18)))*(I27-D27)))) -> 0.08360909093 | J28: =(D27+((((EXP(-(B28-B27)*10^-3/$F$19)))*(JW27-D27)))) -> 0.01655392415 | K28: =(D27+((((EXP(-(B28-B27)*10^-3/$F$20)))*(K27-D27)))) -> 0.01658050456 | L28: =(D27+((((EXP(-(B28-B27)*10^-3/$F$21)))*(L27-D27)))) -> 0.001127808603 | M28: =(D27+((((EXP(-(B28-B27)*10^-3/$F$22)))*(M27-D27)))) -> 0.8252159607 | N28: =(D27+((((EXP(-(B28-B27)*10^-3/$F$23)))*(N27-D27)))) -> 0.01648062995 | O28: =(D27+((((EXP(-(B28-B27)*10^-3/$F$24)))*(O27-D27)))) -> 0.001127808603 | P28: =$C$6+(E28*$G$14)+(F28*$G$15)+(G28*$G$16)+(H28*$G$17)+(I28*$G$18)+(J28*$G$19)+(K28*$G$20)+(L28*$G$21)+(M28*$G$22)+(N28*$G$23)+(O28*$G$24) -> 35.22699389 | Q28: =(D27+((((EXP(-(B28-B27)*10^-3/$B$14)))*(Q27-D27)))) -> 0.001127808603 | R28: =(D27+((((EXP(-(B28-B27)*10^-3/$B$15)))*(R27-D27)))) -> 0.007381792872 | S28: =(D27+((((EXP(-(B28-B27)*10^-3/$B$16)))*(S27-D27)))) -> 0.0073817941 | T28: =(D27+((((EXP(-(B28-B27)*10^-3/$B$17)))*(T27-D27)))) -> 0.001127808603 | U28: =(D27+((((EXP(-(B28-B27)*10^-3/$B$18)))*(U27-D27)))) -> 0.001127808603 | Z28: =$C$6+(Q28*$C$14)+(R28*$C$15)+(S28*$C$16)+(T28*$C$17)+(U28*$C$18) -> 35.01545114 | AA28: =IF((P28-Z28)>=64,1,0) -> 0 | AB28: =IF((P28>=154),1,0) -> 0 | AC28: =IF(C28>=$AD$6,C28,0)/$AD$5 -> 6e-05 | AD28: =IF(C28>=$AD$8,$AD$7,0) -> 0 | AE28: =IF(C28>$AD$10,($AD$9/C28),0) -> 0 | AF28: =(P28-Z28)*IF((Vcc_max-C28)>$F$4,1,0) -> 0.2115427516
A29: 2 | B29: 0.02036363636 | C29: 0.012 | D29: 3.321686417 | E29: 0.002254914796 | F29: 0.002254914796 | G29: 0.6412038261 | H29: 0.6940570862 | I29: 0.1650911772 | J29: 0.01654923154 | K29: 0.0330735928 | L29: 0.002254914796 | M29: 1.445303532 | N29: 0.03287486539 | O29: =(D28+((((EXP(-(B29-B28)*10^-3/$F$24)))*(O28-D28)))) -> 0.002254914796 | P29: =$C$6+(E29*$G$14)+(F29*$G$15)+(G29*$G$16)+(H29*$G$17)+(I29*$G$18)+(J29*$G$19)+(K29*$G$20)+(L29*$G$21)+(M29*$G$22)+(N29*$G$23)+(O29*$G$24) -> 35.41864192 | Q29: 0.002254914796 | R29: 0.01474509792 | S29: 0.01474510037 | T29: 0.002254914796 | U29: 0.002254914796 | Z29: =$C$6+(Q29*$C$14)+(R29*$C$15)+(S29*$C$16)+(T29*$C$17)+(U29*$C$18) -> 35.03088189 | AA29: 0 | AB29: 0 | AC29: 0.00012 | AD29: 0 | AE29: 0 | AF29: =(P29-Z29)*IF((Vcc_max-C29)>$F$4,1,0) -> 0.387760024
A30: 3 | B30: 0.03054545455 | C30: 0.018 | D30: 3.320742831 | E30: 0.003381318572 | F30: 0.003381318572 | G30: 0.9136565037 | H30: 0.9845139359 | I30: 0.2444997484 | J30: 0.01654453535 | K30: 0.04947969722 | L30: 0.003381318572 | M30: 1.911194258 | N30: 0.04918313116 | O30: 0.003381318572 | P30: 35.59017876 | Q30: 0.003381318572 | R30: 0.02208995462 | S30: 0.02208995829 | T30: 0.003381318572 | U30: 0.003381318572 | Z30: 35.04629228 | AA30: 0 | AB30: 0 | AC30: 0.00018 | AD30: 0 | AE30: 0 | AF30: =(P30-Z30)*IF((Vcc_max-C30)>$F$4,1,0) -> 0.5438864769
A31: 4 | B31: 0.04072727273 | C31: 0.024 | D31: 3.319798526 | E31: 0.004507019926 | F31: 0.004507019926 | G31: 1.158320326 | H31: 1.242759525 | I31: 0.3218869486 | J31: 0.01653983558 | K31: 0.06579924819 | L31: 0.004507019926 | M31: 2.261173792 | N31: 0.06540584998 | O31: 0.004507019926 | P31: 35.74526272 | Q31: 0.004507019926 | R31: 0.02941640233 | S31: 0.02941640721 | T31: 0.004507019926 | U31: 0.004507019926 | Z31: 35.06168234 | AA31: 0 | AB31: 0 | AC31: 0.00024 | AD31: 0 | AE31: 0 | AF31: =(P31-Z31)*IF((Vcc_max-C31)>$F$4,1,0) -> 0.6835803748
A32: 5 | B32: 0.05090909091 | C32: 0.03 | D32: 3.3188535 | E32: 0.00563201885 | F32: 0.00563201885 | G32: 1.378019765 | H32: 1.472354392 | I32: 0.3973036102 | J32: 0.01653513221 | K32: 0.08203267389 | L32: 0.00563201885 | M32: 2.524021769 | N32: 0.08154344249 | O32: 0.00563201885 | P32: 35.88675728 | Q32: 0.00563201885 | R32: 0.03672448035 | S32: 0.03672448644 | T32: 0.00563201885 | U32: 0.00563201885 | Z32: 35.0770521 | AA32: 0 | AB32: 0 | AC32: 0.0003 | AD32: 0 | AE32: 0 | AF32: =(P32-Z32)*IF((Vcc_max-C32)>$F$4,1,0) -> 0.8097051767
A33: 6 | B33: 0.06109090909 | C33: 0.036 | D33: 3.317907754 | E33: 0.00675631534 | F33: 0.00675631534 | G33: 1.575292208 | H33: 1.676465492 | I33: 0.4707992867 | J33: 0.01653042526 | K33: 0.0981804004 | L33: 0.00675631534 | M33: 2.721372073 | N33: 0.09759632723 | O33: 0.00675631534 | P33: 36.01691735 | Q33: 0.00675631534 | R33: 0.04401422788 | S33: 0.04401423516 | T33: 0.00675631534 | U33: 0.00675631534 | Z33: 35.09240159 | AA33: 0 | AB33: 0 | AC33: 0.00036 | AD33: 0 | AE33: 0 | AF33: =(P33-Z33)*IF((Vcc_max-C33)>$F$4,1,0) -> 0.9245157552
A34: 7 | B34: 0.07127272727 | C34: 0.042 | D34: 3.316961289 | E34: 0.00787990939 | F34: 0.00787990939 | G34: 1.75241713 | H34: 1.85790971 | I34: 0.5424222849 | J34: 0.01652571473 | K34: 0.1142428517 | L34: 0.00787990939 | M34: 2.869487068 | N34: 0.1135649207 | O34: 0.00787990939 | P34: 36.13753035 | Q34: 0.00787990939 | R34: 0.05128568403 | S34: 0.0512856925 | T34: 0.00787990939 | U34: 0.00787990939 | Z34: 35.10773084 | AA34: 0 | AB34: 0 | AC34: 0.00042 | AD34: 0 | AE34: 0 | AF34: =(P34-Z34)*IF((Vcc_max-C34)>$F$4,1,0) -> 1.029799511
A35: 8 | B35: 0.08145454545 | C35: 0.048 | D35: 3.316014103 | E35: 0.009002800993 | F35: 0.009002800993 | G35: 1.911442317 | H35: 2.019192551 | I35: 0.6122196968 | J35: 0.0165210006 | K35: 0.1302204495 | L35: 0.009002800993 | M35: 2.980591305 | N35: 0.1294496372 | O35: 0.009002800993 | P35: 36.25002335 | Q35: 0.009002800993 | R35: 0.05853888782 | S35: 0.05853889749 | T35: 0.009002800993 | U35: 0.009002800993 | Z35: 35.12303989 | AA35: 0 | AB35: 0 | AC35: 0.00048 | AD35: 0 | AE35: 0 | AF35: =(P35-Z35)*IF((Vcc_max-C35)>$F$4,1,0) -> 1.126983463
A36: 9 | B36: 0.09163636364 | C36: 0.054 | D36: 3.315066197 | E36: 0.01012499014 | F36: 0.01012499014 | G36: 2.054207409 | H36: 2.162542566 | I36: 0.6802374293 | J36: 0.0165162829 | K36: 0.1461136136 | L36: 0.01012499014 | M36: 3.063874078 | N36: 0.1452508893 | O36: 0.01012499014 | P36: 36.35554441 | Q36: 0.01012499014 | R36: 0.0657738782 | S36: 0.06577388905 | T36: 0.01012499014 | U36: 0.01012499014 | Z36: 35.13832875 | AA36: 0 | AB36: 0 | AC36: 0.00054 | AD36: 0 | AE36: 0 | AF36: =(P36-Z36)*IF((Vcc_max-C36)>$F$4,1,0) -> 1.217215665
A37: 10 | B37: 0.1018181818 | C37: 0.06 | D37: 3.314117571 | E37: 0.01124647684 | F37: 0.01124647684 | G37: 2.18236506 | H37: 2.289941959 | I37: 0.7465202346 | J37: 0.0165115616 | K37: 0.1619227617 | L37: 0.01124647684 | M37: 3.126243054 | N37: 0.1609690871 | O37: 0.01124647684 | P37: 36.45502468 | Q37: 0.01124647684 | R37: 0.07299069403 | S37: 0.07299070605 | T37: 0.01124647684 | U37: 0.01124647684 | Z37: 35.15359746 | AA37: 0 | AB37: 0 | AC37: 0.0006 | AD37: 0 | AE37: 0 | AF37: =(P37-Z37)*IF((Vcc_max-C37)>$F$4,1,0) -> 1.301427217
A38: 11 | B38: 0.112 | C38: 0.066 | D38: 3.313168226 | E38: 0.01236726106 | F38: 0.01236726106 | G38: 2.297399944 | H38: 2.403153826 | I38: 0.8111117392 | J38: 0.01650683672 | K38: 0.1776483092 | L38: 0.01236726106 | M38: 3.17289078 | N38: 0.1766046389 | O38: 0.01236726106 | P38: 36.54922568 | Q38: 0.01236726106 | R38: 0.08018937406 | S38: 0.08018938726 | T38: 0.01236726106 | U38: 0.01236726106 | Z38: 35.16884606 | AA38: 0 | AB38: 0 | AC38: 0.00066 | AD38: 0 | AE38: 0 | AF38: =(P38-Z38)*IF((Vcc_max-C38)>$F$4,1,0) -> 1.380379619
A39: 12 | B39: 0.1221818182 | C39: 0.072 | D39: 3.31221816 | E39: 0.01348734282 | F39: 0.01348734282 | G39: 2.400645825 | H39: 2.503746369 | I39: 0.874054472 | J39: 0.01650210825 | K39: 0.1932906696 | L39: 0.01348734282 | M39: 3.207720538 | N39: 0.192157951 | O39: 0.01348734282 | P39: 36.63877559 | Q39: 0.01348734282 | R39: 0.08736995698 | S39: 0.08736997135 | T39: 0.01348734282 | U39: 0.01348734282 | Z39: 35.18407457 | AA39: 0 | AB39: 0 | AC39: 0.00072 | AD39: 0 | AE39: 0 | AF39: =(P39-Z39)*IF((Vcc_max-C39)>$F$4,1,0) -> 1.454701027
A40: 13 | B40: 0.1323636364 | C40: 0.078 | D40: 3.311267374 | E40: 0.0146067221 | F40: 0.0146067221 | G40: 2.493300903 | H40: 2.593114442 | I40: 0.935389892 | J40: 0.0164973762 | K40: 0.2088502544 | L40: 0.0146067221 | M40: 3.233666454 | N40: 0.2076294277 | O40: 0.0146067221 | P40: 36.72419711 | Q40: 0.0146067221 | R40: 0.09453248139 | S40: 0.09453249691 | T40: 0.0146067221 | U40: 0.0146067221 | Z40: 35.19928302 | AA40: 0 | AB40: 0 | AC40: 0.00078 | AD40: 0 | AE40: 0 | AF40: =(P40-Z40)*IF((Vcc_max-C40)>$F$4,1,0) -> 1.52491409
A41: 14 | B41: 0.1425454545 | C41: 0.084 | D41: 3.310315869 | E41: 0.0157253989 | F41: 0.0157253989 | G41: 2.576441587 | H41: 2.672498713 | I41: 0.9951584153 | J41: 0.01649264056 | K41: 0.2243274729 | L41: 0.0157253989 | M41: 3.252934136 | N41: 0.223019471 | O41: 0.0157253989 | P41: 36.80592885 | Q41: 0.0157253989 | R41: 0.1016769858 | S41: 0.1016770025 | T41: 0.0157253989 | U41: 0.0157253989 | Z41: 35.21447144 | AA41: 0 | AB41: 0 | AC41: 0.00084 | AD41: 0 | AE41: 0 | AF41: =(P41-Z41)*IF((Vcc_max-C41)>$F$4,1,0) -> 1.591457413
A42: 15 | B42: 0.1527272727 | C42: 0.09 | D42: 3.309363643 | E42: 0.01684337321 | F42: 0.01684337321 | G42: 2.651034876 | H42: 2.743002706 | I42: 1.053399441 | J42: 0.01648790134 | K42: 0.2397227324 | L42: 0.01684337321 | M42: 3.267181557 | N42: 0.2383284814 | O42: 0.01684337321 | P42: 36.88434202 | Q42: 0.01684337321 | R42: 0.1088035086 | S42: 0.1088035264 | T42: 0.01684337321 | U42: 0.01684337321 | Z42: 35.22963986 | AA42: 0 | AB42: 0 | AC42: 0.0009 | AD42: 0 | AE42: 0 | AF42: =(P42-Z42)*IF((Vcc_max-C42)>$F$4,1,0) -> 1.654702165
A43: 16 | B43: 0.1629090909 | C43: 0.096 | D43: 3.308410697 | E43: 0.01796064503 | F43: 0.01796064503 | G43: 2.717949482 | H43: 2.805607965 | I43: 1.110151378 | J43: 0.01648315852 | K43: 0.2550364382 | L43: 0.01796064503 | M43: 3.277655029 | N43: 0.253556857 | O43: 0.01796064503 | P43: 36.95975329 | Q43: 0.01796064503 | R43: 0.1159120882 | S43: 0.1159121072 | T43: 0.01796064503 | U43: 0.01796064503 | Z43: 35.24478831 | AA43: 0 | AB43: 0 | AC43: 0.00096 | AD43: 0 | AE43: 0 | AF43: =(P43-Z43)*IF((Vcc_max-C43)>$F$4,1,0) -> 1.714964987
A44: 17 | B44: 0.1730909091 | C44: 0.102 | D44: 3.307457031 | E44: 0.01907721434 | F44: 0.01907721434 | G44: 2.777965816 | H44: 2.861187531 | I44: 1.165451668 | J44: 0.01647841213 | K44: 0.2702689936 | L44: 0.01907721434 | M44: 3.285291413 | N44: 0.2687049941 | O44: 0.01907721434 | P44: 37.0324349 | Q44: 0.01907721434 | R44: 0.1230027628 | S44: 0.1230027829 | T44: 0.01907721434 | U44: 0.01907721434 | Z44: 35.25991682 | AA44: 0 | AB44: 0 | AC44: 0.00102 | AD44: 0 | AE44: 0 | AF44: =(P44-Z44)*IF((Vcc_max-C44)>$F$4,1,0) -> 1.772518085
A45: 18 | B45: 0.1832727273 | C45: 0.108 | D45: 3.306502646 | E45: 0.02019308115 | F45: 0.02019308115 | G45: 2.831784968 | H45: 2.910517941 | I45: 1.219336811 | J45: 0.01647366214 | K45: 0.2854207998 | L45: 0.02019308115 | M45: 3.290794957 | N45: 0.283773287 | O45: 0.02019308115 | P45: 37.10262257 | Q45: 0.02019308115 | R45: 0.1300755706 | S45: 0.1300755918 | T45: 0.02019308115 | U45: 0.02019308115 | Z45: 35.27502542 | AA45: 0 | AB45: 0 | AC45: 0.00108 | AD45: 0 | AE45: 0 | AF45: =(P45-Z45)*IF((Vcc_max-C45)>$F$4,1,0) -> 1.827597156
A46: 19 | B46: 0.1934545455 | C46: 0.114 | D46: 3.30554754 | E46: 0.02130824545 | F46: 0.02130824545 | G46: 2.880036765 | H46: 2.954289895 | I46: 1.271842389 | J46: 0.01646890857 | K46: 0.300492256 | L46: 0.02130824545 | M46: 3.294695049 | N46: 0.2987621281 | O46: 0.02130824545 | P46: 37.17052179 | Q46: 0.02130824545 | R46: 0.1371305496 | S46: 0.1371305719 | T46: 0.02130824545 | U46: 0.02130824545 | Z46: 35.29011413 | AA46: 0 | AB46: 0 | AC46: 0.00114 | AD46: 0 | AE46: 0 | AF46: =(P46-Z46)*IF((Vcc_max-C46)>$F$4,1,0) -> 1.880407657
A47: 20 | B47: 0.2036363636 | C47: 0.12 | D47: 3.304591714 | E47: 0.02242270723 | F47: 0.02242270723 | G47: 2.923287018 | H47: 2.993117742 | I47: 1.323003088 | J47: 0.01646415142 | K47: 0.3154837596 | L47: 0.02242270723 | M47: 3.297389635 | N47: 0.3136719078 | O47: 0.02242270723 | P47: 37.2363128 | Q47: 0.02242270723 | R47: 0.1441677379 | S47: 0.1441677614 | T47: 0.02242270723 | U47: 0.02242270723 | Z47: 35.305183 | AA47: 0 | AB47: 0 | AC47: 0.0012 | AD47: 0 | AE47: 0 | AF47: =(P47-Z47)*IF((Vcc_max-C47)>$F$4,1,0) -> 1.931129795
A48: 21 | B48: 0.2138181818 | C48: 0.126 | D48: 3.303635169 | E48: 0.02353646649 | F48: 0.02353646649 | G48: 2.962044026 | H48: 3.027547921 | I48: 1.372852723 | J48: 0.01645939068 | K48: 0.3303957057 | L48: 0.02353646649 | M48: 3.299177853 | N48: 0.3285030145 | O48: 0.02353646649 | P48: 37.30015458 | Q48: 0.02353646649 | R48: 0.1511871734 | S48: 0.151187198 | T48: 0.02353646649 | U48: 0.02353646649 | Z48: 35.32023205 | AA48: 0 | AB48: 0 | AC48: 0.00126 | AD48: 0 | AE48: 0 | AF48: =(P48-Z48)*IF((Vcc_max-C48)>$F$4,1,0) -> 1.979922531
A49: 22 | B49: 0.224 | C49: 0.132 | D49: 3.302677903 | E49: 0.02464952322 | F49: 0.02464952322 | G49: 2.996764424 | H49: 3.058066469 | I49: 1.421424258 | J49: 0.01645462635 | K49: 0.3452284877 | L49: 0.02464952322 | M49: 3.300284569 | N49: 0.3432558348 | O49: 0.02464952322 | P49: 37.3621881 | Q49: 0.02464952322 | R49: 0.1581888938 | S49: 0.1581889195 | T49: 0.02464952322 | U49: 0.02464952322 | Z49: 35.3352613 | AA49: 0 | AB49: 0 | AC49: 0.00132 | AD49: 0 | AE49: 0 | AF49: =(P49-Z49)*IF((Vcc_max-C49)>$F$4,1,0) -> 2.026926804
A50: 23 | B50: 0.2341818182 | C50: 0.138 | D50: 3.301719917 | E50: 0.02576187741 | F50: 0.02576187741 | G50: 3.027858431 | H50: 3.085105696 | I50: 1.468749827 | J50: 0.01644985843 | K50: 0.3599824969 | L50: 0.02576187741 | M50: 3.300878814 | N50: 0.3579307534 | O50: 0.02576187741 | P50: 37.42253895 | Q50: 0.02576187741 | R50: 0.1651729371 | S50: 0.1651729639 | T50: 0.02576187741 | U50: 0.02576187741 | Z50: 35.35027079 | AA50: 0 | AB50: 0 | AC50: 0.00138 | AD50: 0 | AE50: 0 | AF50: =(P50-Z50)*IF((Vcc_max-C50)>$F$4,1,0) -> 2.072268166
A51: 24 | B51: 0.2443636364 | C51: 0.144 | D51: 3.300761211 | E51: 0.02687352906 | F51: 0.02687352906 | G51: 3.055694574 | H51: 3.109050125 | I51: 1.514860755 | J51: 0.01644508693 | K51: 0.3746581227 | L51: 0.02687352906 | M51: 3.301087653 | N51: 0.3725281528 | O51: 0.02687352906 | P51: 37.48131948 | Q51: 0.02687352906 | R51: 0.1721393407 | S51: 0.1721393686 | T51: 0.02687352906 | U51: 0.02687352906 | Z51: 35.36526054 | AA51: 0 | AB51: 0 | AC51: 0.00144 | AD51: 0 | AE51: 0 | AF51: =(P51-Z51)*IF((Vcc_max-C51)>$F$4,1,0) -> 2.11605894
A52: 25 | B52: 0.2545454545 | C52: 0.15 | D52: 3.299801786 | E52: 0.02798447816 | F52: 0.02798447816 | G52: 3.080603917 | H52: 3.130241774 | I52: 1.55978758 | J52: 0.01644031185 | K52: 0.3892557526 | L52: 0.02798447816 | M52: 3.3010066 | N52: 0.3870484141 | O52: 0.02798447816 | P52: 37.53863059 | Q52: 0.02798447816 | R52: 0.1790881424 | S52: 0.1790881714 | T52: 0.02798447816 | U52: 0.02798447816 | Z52: 35.38023059 | AA52: 0 | AB52: 0 | AC52: 0.0015 | AD52: 0 | AE52: 0 | AF52: =(P52-Z52)*IF((Vcc_max-C52)>$F$4,1,0) -> 2.1584
A53: 26 | B53: 0.2647272727 | C53: 0.156 | D53: 3.29884164 | E53: 0.02909472471 | F53: 0.02909472471 | G53: 3.102883878 | H53: 3.148984854 | I53: 1.603560073 | J53: 0.01643553317 | K53: 0.4037757721 | L53: 0.02909472471 | M53: 3.300707455 | N53: 0.4014919161 | O53: 0.02909472471 | P53: 37.59456322 | Q53: 0.02909472471 | R53: 0.1860193795 | S53: 0.1860194096 | T53: 0.02909472471 | U53: 0.02909472471 | Z53: 35.39518096 | AA53: 0 | AB53: 0 | AC53: 0.00156 | AD53: 0 | AE53: 0 | AF53: =(P53-Z53)*IF((Vcc_max-C53)>$F$4,1,0) -> 2.199382261
A54: 27 | B54: 0.2749090909 | C54: 0.162 | D54: 3.297880774 | E54: 0.0302042687 | F54: 0.0302042687 | G54: 3.122801641 | H54: 3.165549949 | I54: 1.646207253 | J54: 0.01643075091 | K54: 0.4182185647 | L54: 0.0302042687 | M54: 3.300244188 | N54: 0.4158590358 | O54: 0.0302042687 | P54: 37.64919961 | Q54: 0.0302042687 | R54: 0.1929330896 | S54: 0.1929331207 | T54: 0.0302042687 | U54: 0.0302042687 | Z54: 35.41011168 | AA54: 0 | AB54: 0 | AC54: 0.00162 | AD54: 0 | AE54: 0 | AF54: =(P54-Z54)*IF((Vcc_max-C54)>$F$4,1,0) -> 2.239087927
A55: 28 | B55: 0.2850909091 | C55: 0.168 | D55: 3.296919189 | E55: 0.03131311012 | F55: 0.03131311012 | G55: 3.140597234 | H55: 3.180177734 | I55: 1.687757412 | J55: 0.01642596507 | K55: 0.4325845121 | L55: 0.03131311012 | M55: 3.299657371 | N55: 0.4301501485 | O55: 0.03131311012 | P55: 37.70261433 | Q55: 0.03131311012 | R55: 0.1998293098 | S55: 0.1998293421 | T55: 0.03131311012 | U55: 0.03131311012 | Z55: 35.42502278 | AA55: 0 | AB55: 0 | AC55: 0.00168 | AD55: 0 | AE55: 0 | AF55: =(P55-Z55)*IF((Vcc_max-C55)>$F$4,1,0) -> 2.277591548
A56: 29 | B56: 0.2952727273 | C56: 0.174 | D56: 3.295956883 | E56: 0.03242124898 | F56: 0.03242124898 | G56: 3.156486289 | H56: 3.193082276 | I56: 1.728238129 | J56: 0.01642117564 | K56: 0.4468739941 | L56: 0.03242124898 | M56: 3.298977503 | N56: 0.4443656274 | O56: 0.03242124898 | P56: 37.75487522 | Q56: 0.03242124898 | R56: 0.2067080776 | S56: 0.2067081109 | T56: 0.03242124898 | U56: 0.03242124898 | Z56: 35.4399143 | AA56: 0 | AB56: 0 | AC56: 0.00174 | AD56: 0 | AE56: 0 | AF56: =(P56-Z56)*IF((Vcc_max-C56)>$F$4,1,0) -> 2.314960917
A57: 30 | B57: 0.3054545455 | C57: 0.18 | D57: 3.294993857 | E57: 0.03352868525 | F57: 0.03352868525 | G57: 3.170662519 | H57: 3.204453985 | I57: 1.767676288 | J57: 0.01641638262 | K57: 0.4610873886 | L57: 0.03352868525 | M57: 3.298227507 | N57: 0.4585058441 | O57: 0.03352868525 | P57: 37.8060441 | Q57: 0.03352868525 | R57: 0.21356943 | S57: 0.2135694644 | T57: 0.03352868525 | U57: 0.03352868525 | Z57: 35.45478625 | AA57: 0 | AB57: 0 | AC57: 0.0018 | AD57: 0 | AE57: 0 | AF57: =(P57-Z57)*IF((Vcc_max-C57)>$F$4,1,0) -> 2.351257848
A58: 31 | B58: 0.3156363636 | C58: 0.186 | D58: 3.294030111 | E58: 0.03463541894 | F58: 0.03463541894 | G58: 3.183299947 | H58: 3.214462217 | I58: 1.8060981 | J58: 0.01641158602 | K58: 0.4752250715 | L58: 0.03463541894 | M58: 3.297424618 | N58: 0.4725711682 | O58: 0.03463541894 | P58: 37.85617751 | Q58: 0.03463541894 | R58: 0.2204134041 | S58: 0.2204134396 | T58: 0.03463541894 | U58: 0.03463541894 | Z58: 35.46963867 | AA58: 0 | AB58: 0 | AC58: 0.00186 | AD58: 0 | AE58: 0 | AF58: =(P58-Z58)*IF((Vcc_max-C58)>$F$4,1,0) -> 2.386538834
A59: 32 | B59: 0.3258181818 | C59: 0.192 | D59: 3.293065646 | E59: 0.03574145005 | F59: 0.03574145005 | G59: 3.194554909 | H59: 3.223257613 | I59: 1.843529112 | J59: 0.01640678583 | K59: 0.4892874171 | L59: 0.03574145005 | M59: 3.296581789 | N59: 0.4865619675 | O59: 0.03574145005 | P59: 37.90532722 | Q59: 0.03574145005 | R59: 0.227240037 | S59: 0.2272400735 | T59: 0.03574145005 | U59: 0.03574145005 | Z59: 35.48447159 | AA59: 0 | AB59: 0 | AC59: 0.00192 | AD59: 0 | AE59: 0 | AF59: =(P59-Z59)*IF((Vcc_max-C59)>$F$4,1,0) -> 2.42085563
A60: 33 | B60: 0.336 | C60: 0.198 | D60: 3.29210046 | E60: 0.03684677856 | F60: 0.03684677856 | G60: 3.20456785 | H60: 3.230974159 | I60: 1.879994232 | J60: 0.01640198205 | K60: 0.5032747974 | L60: 0.03684677856 | M60: 3.295708759 | N60: 0.500478608 | O60: 0.03684677856 | P60: 37.95354078 | Q60: 0.03684677856 | R60: 0.2340493655 | S60: 0.234049403 | T60: 0.03684677856 | U60: 0.03684677856 | Z60: 35.49928503 | AA60: 0 | AB60: 0 | AC60: 0.00198 | AD60: 0 | AE60: 0 | AF60: =(P60-Z60)*IF((Vcc_max-C60)>$F$4,1,0) -> 2.454255754
A61: 34 | B61: 0.3461818182 | C61: 0.204 | D61: 3.291134554 | E61: 0.03795140447 | F61: 0.03795140447 | G61: 3.21346494 | H61: 3.23773103 | I61: 1.915517741 | J61: 0.01639717469 | K61: 0.517187583 | L61: 0.03795140447 | M61: 3.294812848 | N61: 0.5143214537 | O61: 0.03795140447 | P61: 38.00086195 | Q61: 0.03795140447 | R61: 0.2408414264 | S61: 0.2408414651 | T61: 0.03795140447 | U61: 0.03795140447 | Z61: 35.51407902 | AA61: 0 | AB61: 0 | AC61: 0.00204 | AD61: 0 | AE61: 0 | AF61: =(P61-Z61)*IF((Vcc_max-C61)>$F$4,1,0) -> 2.486782927
A62: 35 | B62: 0.3563636364 | C62: 0.21 | D62: 3.290167929 | E62: 0.03905532777 | F62: 0.03905532777 | G62: 3.221359523 | H62: 3.243634229 | I62: 1.950123307 | J62: 0.01639236374 | K62: 0.5310261423 | L62: 0.03905532777 | M62: 3.293899557 | N62: 0.5280908672 | O62: 0.03905532777 | P62: 38.04733106 | Q62: 0.03905532777 | R62: 0.2476162566 | S62: 0.2476162963 | T62: 0.03905532777 | U62: 0.03905532777 | Z62: 35.5288536 | AA62: 0 | AB62: 0 | AC62: 0.0021 | AD62: 0 | AE62: 0 | AF62: =(P62-Z62)*IF((Vcc_max-C62)>$F$4,1,0) -> 2.518477461
A63: 36 | B63: 0.3665454545 | C63: 0.216 | D63: 3.289200583 | E63: 0.04015854846 | F63: 0.04015854846 | G63: 3.228353426 | H63: 3.248778041 | I63: 1.983834005 | J63: 0.01638754921 | K63: 0.5447908421 | L63: 0.04015854846 | M63: 3.292973024 | N63: 0.5417872089 | O63: 0.04015854846 | P63: 38.09298539 | Q63: 0.04015854846 | R63: 0.2543738927 | S63: 0.2543739334 | T63: 0.04015854846 | U63: 0.04015854846 | Z63: 35.54360879 | AA63: 0 | AB63: 0 | AC63: 0.00216 | AD63: 0 | AE63: 0 | AF63: =(P63-Z63)*IF((Vcc_max-C63)>$F$4,1,0) -> 2.549376603
A64: 37 | B64: 0.3767272727 | C64: 0.222 | D64: 3.288232517 | E64: 0.04126106653 | F64: 0.04126106653 | G64: 3.234538122 | H64: 3.253246329 | I64: 2.016672328 | J64: 0.01638273109 | K64: 0.5584820472 | L64: 0.04126106653 | M64: 3.292036357 | N64: 0.5554108376 | O64: 0.04126106653 | P64: 38.13785944 | Q64: 0.04126106653 | R64: 0.2611143713 | S64: 0.261114413 | T64: 0.04126106653 | U64: 0.04126106653 | Z64: 35.55834461 | AA64: 0 | AB64: 0 | AC64: 0.00222 | AD64: 0 | AE64: 0 | AF64: =(P64-Z64)*IF((Vcc_max-C64)>$F$4,1,0) -> 2.579514832
A65: 38 | B65: 0.3869090909 | C65: 0.228 | D65: 3.287263731 | E65: 0.04236288197 | F65: 0.04236288197 | G65: 3.239995789 | H65: 3.257113685 | I65: 2.048660204 | J65: 0.01637790938 | K65: 0.5721001208 | L65: 0.04236288197 | M65: 3.291091894 | N65: 0.5689621103 | O65: 0.04236288197 | P65: 38.18198524 | Q65: 0.04236288197 | R65: 0.2678377289 | S65: 0.2678377716 | T65: 0.04236288197 | U65: 0.04236288197 | Z65: 35.5730611 | AA65: 0 | AB65: 0 | AC65: 0.00228 | AD65: 0 | AE65: 0 | AF65: =(P65-Z65)*IF((Vcc_max-C65)>$F$4,1,0) -> 2.608924132
A66: 39 | B66: 0.3970909091 | C66: 0.234 | D66: 3.286294226 | E66: 0.04346399479 | F66: 0.04346399479 | G66: 3.244800252 | H66: 3.260446456 | I66: 2.07981901 | J66: 0.01637308409 | K66: 0.585645424 | L66: 0.04346399479 | M66: 3.290141392 | N66: 0.5824413822 | O66: 0.04346399479 | P66: 38.22539252 | Q66: 0.04346399479 | R66: 0.2745440019 | S66: 0.2745440457 | T66: 0.04346399479 | U66: 0.04346399479 | Z66: 35.58775829 | AA66: 0 | AB66: 0 | AC66: 0.00234 | AD66: 0 | AE66: 0 | AF66: =(P66-Z66)*IF((Vcc_max-C66)>$F$4,1,0) -> 2.637634227
A67: 40 | B67: 0.4072727273 | C67: 0.24 | D67: 3.285324 | E67: 0.04456440497 | F67: 0.04456440497 | G67: 3.24901783 | H67: 3.263303656 | I67: 2.110169582 | J67: 0.01636825521 | K67: 0.5991183162 | L67: 0.04456440497 | M67: 3.289186172 | N67: 0.5958490069 | O67: 0.04456440497 | P67: 38.26810899 | Q67: 0.04456440497 | R67: 0.2812332267 | S67: 0.2812332715 | T67: 0.04456440497 | U67: 0.04456440497 | Z67: 35.6024362 | AA67: 0 | AB67: 0 | AC67: 0.0024 | AD67: 0 | AE67: 0 | AF67: =(P67-Z67)*IF((Vcc_max-C67)>$F$4,1,0) -> 2.665672796
A68: 41 | B68: 0.4174545455 | C68: 0.246 | D68: 3.284353054 | E68: 0.04566411251 | F68: 0.04566411251 | G68: 3.252708103 | H68: 3.265737774 | I68: 2.139732236 | J68: 0.01636342274 | K68: 0.6125191552 | L68: 0.04566411251 | M68: 3.288227226 | N68: 0.6091853359 | O68: 0.04566411251 | P68: 38.31016052 | Q68: 0.04566411251 | R68: 0.2879054395 | S68: 0.2879054853 | T68: 0.04566411251 | U68: 0.04566411251 | Z68: 35.61709486 | AA68: 0 | AB68: 0 | AC68: 0.00246 | AD68: 0 | AE68: 0 | AF68: =(P68-Z68)*IF((Vcc_max-C68)>$F$4,1,0) -> 2.693065661
A69: 42 | B69: 0.4276363636 | C69: 0.252 | D69: 3.283381389 | E69: 0.0467631174 | F69: 0.0467631174 | G69: 3.255924595 | H69: 3.267795498 | I69: 2.168526775 | J69: 0.01635858669 | K69: 0.6258482968 | L69: 0.0467631174 | M69: 3.2872653 | N69: 0.6224507193 | O69: 0.0467631174 | P69: 38.35157125 | Q69: 0.0467631174 | R69: 0.2945606765 | S69: 0.2945607233 | T69: 0.0467631174 | U69: 0.0467631174 | Z69: 35.6317343 | AA69: 0 | AB69: 0 | AC69: 0.00252 | AD69: 0 | AE69: 0 | AF69: =(P69-Z69)*IF((Vcc_max-C69)>$F$4,1,0) -> 2.719836958
A70: 43 | B70: 0.4378181818 | C70: 0.258 | D70: 3.282409003 | E70: 0.04786141964 | F70: 0.04786141964 | G70: 3.25871539 | H70: 3.269518355 | I70: 2.196572503 | J70: 0.01635374705 | K70: 0.6391060951 | L70: 0.04786141964 | M70: 3.286300956 | N70: 0.6356455053 | O70: 0.04786141964 | P70: 38.39236383 | Q70: 0.04786141964 | R70: 0.3011989739 | S70: 0.3011990217 | T70: 0.04786141964 | U70: 0.04786141964 | Z70: 35.64635454 | AA70: 0 | AB70: 0 | AC70: 0.00258 | AD70: 0 | AE70: 0 | AF70: =(P70-Z70)*IF((Vcc_max-C70)>$F$4,1,0) -> 2.746009286
A71: 44 | B71: 0.448 | C71: 0.264 | D71: 3.281435897 | E71: 0.04895901921 | F71: 0.04895901921 | G71: 3.261123683 | H71: 3.27094328 | I71: 2.22388824 | J71: 0.01634890383 | K71: 0.6522929023 | L71: 0.04895901921 | M71: 3.285334616 | N71: 0.6487700403 | O71: 0.04895901921 | P71: 38.43255947 | Q71: 0.04895901921 | R71: 0.3078203676 | S71: 0.3078204164 | T71: 0.04895901921 | U71: 0.04895901921 | Z71: 35.66095562 | AA71: 0 | AB71: 0 | AC71: 0.00264 | AD71: 0 | AE71: 0 | AF71: =(P71-Z71)*IF((Vcc_max-C71)>$F$4,1,0) -> 2.77160385
A72: 45 | B72: 0.4581818182 | C72: 0.27 | D72: 3.280462071 | E72: 0.05005591612 | F72: 0.05005591612 | G72: 3.263188281 | H72: 3.272103129 | I72: 2.250492331 | J72: 0.01634405702 | K72: 0.6654090692 | L72: 0.05005591612 | M72: 3.284366595 | N72: 0.6618246693 | O72: 0.05005591612 | P72: 38.47217814 | Q72: 0.05005591612 | R72: 0.3144248936 | S72: 0.3144249434 | T72: 0.05005591612 | U72: 0.05005591612 | Z72: 35.67553757 | AA72: 0 | AB72: 0 | AC72: 0.0027 | AD72: 0 | AE72: 0 | AF72: =(P72-Z72)*IF((Vcc_max-C72)>$F$4,1,0) -> 2.796640574
A73: 46 | B73: 0.4683636364 | C73: 0.276 | D73: 3.279487526 | E73: 0.05115211036 | F73: 0.05115211036 | G73: 3.264944043 | H73: 3.273027122 | I73: 2.276402662 | J73: 0.01633920663 | K73: 0.6784549444 | L73: 0.05115211036 | M73: 3.283397134 | N73: 0.6748097352 | O73: 0.05115211036 | P73: 38.51123862 | Q73: 0.05115211036 | R73: 0.3210125877 | S73: 0.3210126385 | T73: 0.05115211036 | U73: 0.05115211036 | Z73: 35.6901004 | AA73: 0 | AB73: 0 | AC73: 0.00276 | AD73: 0 | AE73: 0 | AF73: =(P73-Z73)*IF((Vcc_max-C73)>$F$4,1,0) -> 2.82113822
A74: 47 | B74: 0.4785454545 | C74: 0.282 | D74: 3.27851226 | E74: 0.05224760192 | F74: 0.05224760192 | G74: 3.266422288 | H74: 3.273741252 | I74: 2.301636665 | J74: 0.01633435264 | K74: 0.6914308751 | L74: 0.05224760192 | M74: 3.28242641 | N74: 0.6877255794 | O74: 0.05224760192 | P74: 38.54975863 | Q74: 0.05224760192 | R74: 0.3275834858 | S74: 0.3275835376 | T74: 0.05224760192 | U74: 0.05224760192 | Z74: 35.70464415 | AA74: 0 | AB74: 0 | AC74: 0.00282 | AD74: 0 | AE74: 0 | AF74: =(P74-Z74)*IF((Vcc_max-C74)>$F$4,1,0) -> 2.84511448
A75: 48 | B75: 0.4887272727 | C75: 0.288 | D75: 3.277536274 | E75: 0.0533423908 | F75: 0.0533423908 | G75: 3.267651151 | H75: 3.274268637 | I75: 2.326211338 | J75: 0.01632949508 | K75: 0.7043372067 | L75: 0.0533423908 | M75: 3.281454558 | N75: 0.7005725416 | O75: 0.0533423908 | P75: 38.58775492 | Q75: 0.0533423908 | R75: 0.3341376236 | S75: 0.3341376763 | T75: 0.0533423908 | U75: 0.0533423908 | Z75: 35.71916885 | AA75: 0 | AB75: 0 | AC75: 0.00288 | AD75: 0 | AE75: 0 | AF75: =(P75-Z75)*IF((Vcc_max-C75)>$F$4,1,0) -> 2.868586068
A76: 49 | B76: 0.4989090909 | C76: 0.294 | D76: 3.276559569 | E76: 0.05443647699 | F76: 0.05443647699 | G76: 3.268655906 | H76: 3.27462984 | I76: 2.350143249 | J76: 0.01632463392 | K76: 0.7171742826 | L76: 0.05443647699 | M76: 3.28048168 | N76: 0.7133509598 | O76: 0.05443647699 | P76: 38.62524332 | Q76: 0.05443647699 | R76: 0.3406750366 | S76: 0.3406750903 | T76: 0.05443647699 | U76: 0.05443647699 | Z76: 35.73367452 | AA76: 0 | AB76: 0 | AC76: 0.00294 | AD76: 0 | AE76: 0 | AF76: =(P76-Z76)*IF((Vcc_max-C76)>$F$4,1,0) -> 2.891568803
A77: 50 | B77: 0.5090909091 | C77: 0.3 | D77: 3.275582143 | E77: 0.05552986049 | F77: 0.05552986049 | G77: 3.269459259 | H77: 3.274843151 | I77: 2.373448548 | J77: 0.01631976918 | K77: 0.7299424449 | L77: 0.05552986049 | M77: 3.279507851 | N77: 0.7260611703 | O77: 0.05552986049 | P77: 38.66223887 | Q77: 0.05552986049 | R77: 0.3471957605 | S77: 0.3471958152 | T77: 0.05552986049 | U77: 0.05552986049 | Z77: 35.74816119 | AA77: 0 | AB77: 0 | AC77: 0.003 | AD77: 0 | AE77: 0 | AF77: =(P77-Z77)*IF((Vcc_max-C77)>$F$4,1,0) -> 2.914077676
A78: 51 | B78: 0.5192727273 | C78: 0.306 | D78: 3.274603997 | E78: 0.05662254128 | F78: 0.05662254128 | G78: 3.270081608 | H78: 3.274924839 | I78: 2.396142981 | J78: 0.01631490085 | K78: 0.7426420338 | L78: 0.05662254128 | M78: 3.278533129 | N78: 0.7387035078 | O78: 0.05662254128 | P78: 38.69875581 | Q78: 0.05662254128 | R78: 0.3536998306 | S78: 0.3536998863 | T78: 0.05662254128 | U78: 0.05662254128 | Z78: 35.76262889 | AA78: 0 | AB78: 0 | AC78: 0.00306 | AD78: 0 | AE78: 0 | AF78: =(P78-Z78)*IF((Vcc_max-C78)>$F$4,1,0) -> 2.936126919
A79: 52 | B79: 0.5294545455 | C79: 0.312 | D79: 3.273625131 | E79: 0.05771451937 | F79: 0.05771451937 | G79: 3.270541278 | H79: 3.274889373 | I79: 2.418241897 | J79: 0.01631002894 | K79: 0.7552733876 | L79: 0.05771451937 | M79: 3.277557558 | N79: 0.7512783053 | O79: 0.05771451937 | P79: 38.73480771 | Q79: 0.05771451937 | R79: 0.3601872825 | S79: 0.3601873391 | T79: 0.05771451937 | U79: 0.05771451937 | Z79: 35.77707764 | AA79: 0 | AB79: 0 | AC79: 0.00312 | AD79: 0 | AE79: 0 | AF79: =(P79-Z79)*IF((Vcc_max-C79)>$F$4,1,0) -> 2.957730063
A80: 53 | B80: 0.5396363636 | C80: 0.318 | D80: 3.272645546 | E80: 0.05880579474 | F80: 0.05880579474 | G80: 3.270854731 | H80: 3.274749625 | I80: 2.43976026 | J80: 0.01630515344 | K80: 0.7678368434 | L80: 0.05880579474 | M80: 3.276581168 | N80: 0.763785894 | O80: 0.05880579474 | P80: 38.77040748 | Q80: 0.05880579474 | R80: 0.3666581513 | S80: 0.3666582088 | T80: 0.05880579474 | U80: 0.05880579474 | Z80: 35.79150748 | AA80: 0 | AB80: 0 | AC80: 0.00318 | AD80: 0 | AE80: 0 | AF80: =(P80-Z80)*IF((Vcc_max-C80)>$F$4,1,0) -> 2.978899993
A81: 54 | B81: 0.5498181818 | C81: 0.324 | D81: 3.27166524 | E81: 0.0598963674 | F81: 0.0598963674 | G81: 3.271036755 | H81: 3.274517041 | I81: 2.460712655 | J81: 0.01630027436 | K81: 0.7803327361 | L81: 0.0598963674 | M81: 3.275603985 | N81: 0.7762266038 | O81: 0.0598963674 | P81: 38.80556742 | Q81: 0.0598963674 | R81: 0.3731124723 | S81: 0.3731125308 | T81: 0.0598963674 | U81: 0.0598963674 | Z81: 35.80591843 | AA81: 0 | AB81: 0 | AC81: 0.00324 | AD81: 0 | AE81: 0 | AF81: =(P81-Z81)*IF((Vcc_max-C81)>$F$4,1,0) -> 2.999648994
A82: 55 | B82: 0.56 | C82: 0.33 | D82: 3.270684214 | E82: 0.06098623733 | F82: 0.06098623733 | G82: 3.271100636 | H82: 3.274201804 | I82: 2.481113302 | J82: 0.01629539169 | K82: 0.7927613993 | L82: 0.06098623733 | M82: 3.274626026 | N82: 0.7886007626 | O82: 0.06098623733 | P82: 38.84029931 | Q82: 0.06098623733 | R82: 0.3795502808 | S82: 0.3795503402 | T82: 0.06098623733 | U82: 0.06098623733 | Z82: 35.82031052 | AA82: 0 | AB82: 0 | AC82: 0.0033 | AD82: 0 | AE82: 0 | AF82: =(P82-Z82)*IF((Vcc_max-C82)>$F$4,1,0) -> 3.019988798
A83: 56 | B83: 0.5701818182 | C83: 0.336 | D83: 3.269702469 | E83: 0.06207540453 | F83: 0.06207540453 | G83: 3.27105831 | H83: 3.273812972 | I83: 2.500976063 | J83: 0.01629050543 | K83: 0.8051231648 | L83: 0.06207540453 | M83: 3.273647306 | N83: 0.8009086969 | O83: 0.06207540453 | P83: 38.87461438 | Q83: 0.06207540453 | R83: 0.3859716117 | S83: 0.385971672 | T83: 0.06207540453 | U83: 0.06207540453 | Z83: 35.83468377 | AA83: 0 | AB83: 0 | AC83: 0.00336 | AD83: 0 | AE83: 0 | AF83: =(P83-Z83)*IF((Vcc_max-C83)>$F$4,1,0) -> 3.039930618
A84: 57 | B84: 0.5803636364 | C84: 0.342 | D84: 3.268720003 | E84: 0.063163869 | F84: 0.063163869 | G84: 3.270920498 | H84: 3.273358599 | I84: 2.520314452 | J84: 0.01628561559 | K84: 0.8174183627 | L84: 0.063163869 | M84: 3.272667835 | N84: 0.8131507316 | O84: 0.063163869 | P84: 38.9085234 | Q84: 0.063163869 | R84: 0.3923765 | S84: 0.3923765613 | T84: 0.063163869 | U84: 0.063163869 | Z84: 35.84903821 | AA84: 0 | AB84: 0 | AC84: 0.00342 | AD84: 0 | AE84: 0 | AF84: =(P84-Z84)*IF((Vcc_max-C84)>$F$4,1,0) -> 3.059485193
A85: 58 | B85: 0.5905454545 | C85: 0.348 | D85: 3.267736817 | E85: 0.06425163072 | F85: 0.06425163072 | G85: 3.270696832 | H85: 3.27284585 | I85: 2.539141641 | J85: 0.01628072216 | K85: 0.8296473215 | L85: 0.06425163072 | M85: 3.27168762 | N85: 0.8253271898 | O85: 0.06425163072 | P85: 38.94203668 | Q85: 0.06425163072 | R85: 0.3987649807 | S85: 0.3987650429 | T85: 0.06425163072 | U85: 0.06425163072 | Z85: 35.86337387 | AA85: 0 | AB85: 0 | AC85: 0.00348 | AD85: 0 | AE85: 0 | AF85: =(P85-Z85)*IF((Vcc_max-C85)>$F$4,1,0) -> 3.078662812
A86: 59 | B86: 0.6007272727 | C86: 0.354 | D86: 3.266752911 | E86: 0.0653386897 | F86: 0.0653386897 | G86: 3.270395967 | H86: 3.2722811 | I86: 2.557470473 | J86: 0.01627582514 | K86: 0.841810368 | L86: 0.0653386897 | M86: 3.270706668 | N86: 0.8374383931 | O86: 0.0653386897 | P86: 38.97516412 | Q86: 0.0653386897 | R86: 0.4051370886 | S86: 0.4051371518 | T86: 0.0653386897 | U86: 0.0653386897 | Z86: 35.87769077 | AA86: 0 | AB86: 0 | AC86: 0.00354 | AD86: 0 | AE86: 0 | AF86: =(P86-Z86)*IF((Vcc_max-C86)>$F$4,1,0) -> 3.09747335
A87: 60 | B87: 0.6109090909 | C87: 0.36 | D87: 3.265768286 | E87: 0.06642504592 | F87: 0.06642504592 | G87: 3.270025676 | H87: 3.271670017 | I87: 2.575313465 | J87: 0.01627092454 | K87: 0.8539078276 | L87: 0.06642504592 | M87: 3.269724982 | N87: 0.8494846615 | O87: 0.06642504592 | P87: 39.00791524 | Q87: 0.06642504592 | R87: 0.4114928586 | S87: 0.4114929226 | T87: 0.06642504592 | U87: 0.06642504592 | Z87: 35.89198895 | AA87: 0 | AB87: 0 | AC87: 0.0036 | AD87: 0 | AE87: 0 | AF87: =(P87-Z87)*IF((Vcc_max-C87)>$F$4,1,0) -> 3.115926292
A88: 61 | B88: 0.6210909091 | C88: 0.366 | D88: 3.26478294 | E88: 0.06751069939 | F88: 0.06751069939 | G88: 3.269592941 | H88: 3.271017643 | I88: 2.592682822 | J88: 0.01626602035 | K88: 0.8659400237 | L88: 0.06751069939 | M88: 3.268742566 | N88: 0.8614663135 | O88: 0.06751069939 | P88: 39.04029919 | Q88: 0.06751069939 | R88: 0.4178323251 | S88: 0.4178323901 | T88: 0.06751069939 | U88: 0.06751069939 | Z88: 35.90626843 | AA88: 0 | AB88: 0 | AC88: 0.00366 | AD88: 0 | AE88: 0 | AF88: =(P88-Z88)*IF((Vcc_max-C88)>$F$4,1,0) -> 3.134030759
A89: 62 | B89: 0.6312727273 | C89: 0.372 | D89: 3.263796874 | E89: 0.06859565008 | F89: 0.06859565008 | G89: 3.269104037 | H89: 3.270328462 | I89: 2.609590441 | J89: 0.01626111258 | K89: 0.8779072784 | L89: 0.06859565008 | M89: 3.267759423 | N89: 0.8733836659 | O89: 0.06859565008 | P89: 39.07232476 | Q89: 0.06859565008 | R89: 0.424155523 | S89: 0.4241555889 | T89: 0.06859565008 | U89: 0.06859565008 | Z89: 35.92052923 | AA89: 0 | AB89: 0 | AC89: 0.00372 | AD89: 0 | AE89: 0 | AF89: =(P89-Z89)*IF((Vcc_max-C89)>$F$4,1,0) -> 3.151795531
A90: 63 | B90: 0.6414545455 | C90: 0.378 | D90: 3.262810089 | E90: 0.06967989801 | F90: 0.06967989801 | G90: 3.268564601 | H90: 3.269606463 | I90: 2.62604792 | J90: 0.01625620122 | K90: 0.8898099122 | L90: 0.06967989801 | M90: 3.266775554 | N90: 0.885237034 | O90: 0.06967989801 | P90: 39.10400045 | Q90: 0.06967989801 | R90: 0.4304624867 | S90: 0.4304625535 | T90: 0.06967989801 | U90: 0.06967989801 | Z90: 35.93477139 | AA90: 0 | AB90: 0 | AC90: 0.00378 | AD90: 0 | AE90: 0 | AF90: =(P90-Z90)*IF((Vcc_max-C90)>$F$4,1,0) -> 3.169229065
A91: 64 | B91: 0.6516363636 | C91: 0.384 | D91: =(Vcc_max-C91)*($AD$13+IF(C91>=$AD$8,$AD$7,0)+(IF(C91>=$AD$6,C91,0)/$AD$5)+IF(C91>$AD$10,($AD$9/C91),0)) -> 3.261822583 | E91: 0.07076344316 | F91: 0.07076344316 | G91: 3.267979694 | H91: 3.268855195 | I91: 2.642066563 | J91: 0.01625128627 | K91: 0.9016482436 | L91: 0.07076344316 | M91: 3.265790961 | N91: 0.8970267315 | O91: 0.07076344316 | P91: 39.13533444 | Q91: 0.07076344316 | R91: 0.4367532506 | S91: 0.4367533183 | T91: 0.07076344316 | U91: 0.07076344316 | Z91: 35.94899492 | AA91: 0 | AB91: 0 | AC91: 0.00384 | AD91: 0 | AE91: 0 | AF91: =(P91-Z91)*IF((Vcc_max-C91)>$F$4,1,0) -> 3.186339517
A92: 65 | B92: =($AD$11/2000)*(A92) -> 0.6618181818 | C92: =$AD$13*B92*10^-3/($AD$4*10^-6) -> 0.39 | D92: 3.260834357 | E92: =(D91+((((EXP(-(B92-B91)*10^-3/$F$14)))*(E91-D91)))) -> 0.07184628553 | F92: =(D91+((((EXP(-(B92-B91)*10^-3/$F$15)))*(F91-D91)))) -> 0.07184628553 | G92: =(D91+((((EXP(-(B92-B91)*10^-3/$F$16)))*(G91-D91)))) -> 3.267353866 | H92: =(D91+((((EXP(-(B92-B91)*10^-3/$F$17)))*(H91-D91)))) -> 3.268077814 | I92: =(D91+((((EXP(-(B92-B91)*10^-3/$F$18)))*(I91-D91)))) -> 2.657657394 | J92: =(D91+((((EXP(-(B92-B91)*10^-3/$F$19)))*(JW91-D91)))) -> 0.01624636774 | K92: =(D91+((((EXP(-(B92-B91)*10^-3/$F$20)))*(K91-D91)))) -> 0.9134225901 | L92: =(D91+((((EXP(-(B92-B91)*10^-3/$F$21)))*(L91-D91)))) -> 0.07184628553 | M92: =(D91+((((EXP(-(B92-B91)*10^-3/$F$22)))*(M91-D91)))) -> 3.264805645 | N92: =(D91+((((EXP(-(B92-B91)*10^-3/$F$23)))*(N91-D91)))) -> 0.9087530705 | O92: 0.07184628553 | P92: 39.16633462 | Q92: =(D91+((((EXP(-(B92-B91)*10^-3/$B$14)))*(Q91-D91)))) -> 0.07184628553 | R92: =(D91+((((EXP(-(B92-B91)*10^-3/$B$15)))*(R91-D91)))) -> 0.4430278492 | S92: =(D91+((((EXP(-(B92-B91)*10^-3/$B$16)))*(S91-D91)))) -> 0.4430279178 | T92: =(D91+((((EXP(-(B92-B91)*10^-3/$B$17)))*(T91-D91)))) -> 0.07184628553 | U92: =(D91+((((EXP(-(B92-B91)*10^-3/$B$18)))*(U91-D91)))) -> 0.07184628553 | Z92: 35.96319986 | AA92: =IF((P92-Z92)>=64,1,0) -> 0 | AB92: =IF((P92>=154),1,0) -> 0 | AC92: =IF(C92>=$AD$6,C92,0)/$AD$5 -> 0.0039 | AD92: =IF(C92>=$AD$8,$AD$7,0) -> 0 | AE92: =IF(C92>$AD$10,($AD$9/C92),0) -> 0 | AF92: =(P92-Z92)*IF((Vcc_max-C92)>$F$4,1,0) -> 3.20313476
A93: 66 | B93: 0.672 | C93: 0.396 | D93: 3.259845411 | E93: 0.0729284251 | F93: 0.0729284251 | G93: 3.266691202 | H93: 3.267277126 | I93: 2.672831154 | J93: 0.01624144562 | K93: 0.9251332671 | L93: 0.0729284251 | M93: 3.263819606 | N93: 0.9204163617 | O93: =(D92+((((EXP(-(B93-B92)*10^-3/$F$24)))*(O92-D92)))) -> 0.0729284251 | P93: =$C$6+(E93*$G$14)+(F93*$G$15)+(G93*$G$16)+(H93*$G$17)+(I93*$G$18)+(J93*$G$19)+(K93*$G$20)+(L93*$G$21)+(M93*$G$22)+(N93*$G$23)+(O93*$G$24) -> 39.19700863 | Q93: 0.0729284251 | R93: 0.4492863168 | S93: 0.4492863863 | T93: 0.0729284251 | U93: 0.0729284251 | Z93: =$C$6+(Q93*$C$14)+(R93*$C$15)+(S93*$C$16)+(T93*$C$17)+(U93*$C$18) -> 35.97738624 | AA93: 0 | AB93: 0 | AC93: 0.00396 | AD93: 0 | AE93: 0 | AF93: =(P93-Z93)*IF((Vcc_max-C93)>$F$4,1,0) -> 3.219622395
A94: 67 | B94: 0.6821818182 | C94: 0.402 | D94: 3.258855746 | E94: 0.07400986189 | F94: 0.07400986189 | G94: 3.265995375 | H94: 3.266455628 | I94: 2.687598319 | J94: 0.01623651991 | K94: 0.9367805887 | L94: 0.07400986189 | M94: 3.262832846 | N94: 0.932016914 | O94: 0.07400986189 | P94: 39.22736384 | Q94: 0.07400986189 | R94: 0.4555286876 | S94: 0.4555287579 | T94: 0.07400986189 | U94: 0.07400986189 | Z94: 35.99155407 | AA94: 0 | AB94: 0 | AC94: 0.00402 | AD94: 0 | AE94: 0 | AF94: =(P94-Z94)*IF((Vcc_max-C94)>$F$4,1,0) -> 3.235809771
A95: 68 | B95: 0.6923636364 | C95: 0.408 | D95: 3.25786536 | E95: 0.07509059587 | F95: 0.07509059587 | G95: 3.26526968 | H95: 3.26561554 | I95: 2.7019691 | J95: 0.01623159062 | K95: 0.9483648674 | L95: 0.07509059587 | M95: 3.261845364 | N95: 0.9435550352 | O95: 0.07509059587 | P95: 39.25740738 | Q95: 0.07509059587 | R95: 0.4617549957 | S95: 0.4617550669 | T95: 0.07509059587 | U95: 0.07509059587 | Z95: 36.00570339 | AA95: 0 | AB95: 0 | AC95: 0.00408 | AD95: 0 | AE95: 0 | AF95: =(P95-Z95)*IF((Vcc_max-C95)>$F$4,1,0) -> 3.251703994
A96: 69 | B96: 0.7025454545 | C96: 0.414 | D96: 3.256874254 | E96: 0.07617062705 | F96: 0.07617062705 | G96: 3.264517082 | H96: 3.264758839 | I96: 2.715953448 | J96: 0.01622665774 | K96: 0.9598864141 | L96: 0.07617062705 | M96: 3.260857161 | N96: 0.9550310311 | O96: 0.07617062705 | P96: 39.28714616 | Q96: 0.07617062705 | R96: 0.4679652752 | S96: 0.4679653473 | T96: 0.07617062705 | U96: 0.07617062705 | Z96: 36.01983422 | AA96: 0 | AB96: 0 | AC96: 0.00414 | AD96: 0 | AE96: 0 | AF96: =(P96-Z96)*IF((Vcc_max-C96)>$F$4,1,0) -> 3.267311942
A97: 70 | B97: 0.7127272727 | C97: 0.42 | D97: 3.255882429 | E97: 0.07724995541 | F97: 0.07724995541 | G97: 3.263740241 | H97: 3.263887281 | I97: 2.729561068 | J97: 0.01622172128 | K97: 0.9713455382 | L97: 0.07724995541 | M97: 3.259868237 | N97: 0.9664452062 | O97: 0.07724995541 | P97: 39.31658687 | Q97: 0.07724995541 | R97: 0.4741595601 | S97: 0.4741596331 | T97: 0.07724995541 | U97: 0.07724995541 | Z97: 36.03394659 | AA97: 0 | AB97: 0 | AC97: 0.0042 | AD97: 0 | AE97: 0 | AF97: =(P97-Z97)*IF((Vcc_max-C97)>$F$4,1,0) -> 3.282640278
A98: 71 | B98: 0.7229090909 | C98: 0.426 | D98: 3.254889883 | E98: 0.07832858096 | F98: 0.07832858096 | G98: 3.262941548 | H98: 3.263002429 | I98: 2.742801418 | J98: 0.01621678123 | K98: 0.9827425474 | L98: 0.07832858096 | M98: 3.258878593 | N98: 0.9777978636 | O98: 0.07832858096 | P98: 39.34573598 | Q98: 0.07832858096 | R98: 0.4803378844 | S98: 0.4803379582 | T98: 0.07832858096 | U98: 0.07832858096 | Z98: 36.04804052 | AA98: 0 | AB98: 0 | AC98: 0.00426 | AD98: 0 | AE98: 0 | AF98: =(P98-Z98)*IF((Vcc_max-C98)>$F$4,1,0) -> 3.297695456
A99: 72 | B99: 0.7330909091 | C99: 0.432 | D99: 3.253896617 | E99: 0.07940650368 | F99: 0.07940650368 | G99: 3.262123152 | H99: 3.262105672 | I99: 2.75568372 | J99: 0.01621183759 | K99: 0.9940777481 | L99: 0.07940650368 | M99: 3.257888229 | N99: 0.9890893046 | O99: 0.07940650368 | P99: 39.37459978 | Q99: 0.07940650368 | R99: 0.4865002819 | S99: 0.4865003566 | T99: 0.07940650368 | U99: 0.07940650368 | Z99: 36.06211605 | AA99: 0 | AB99: 0 | AC99: 0.00432 | AD99: 0 | AE99: 0 | AF99: =(P99-Z99)*IF((Vcc_max-C99)>$F$4,1,0) -> 3.312483733
A100: 73 | B100: 0.7432727273 | C100: 0.438 | D100: 3.252902631 | E100: 0.08048372358 | F100: 0.08048372358 | G100: 3.261286981 | H100: 3.261198247 | I100: 2.768216963 | J100: 0.01620689037 | K100: 1.005351445 | L100: 0.08048372358 | M100: 3.256897144 | N100: 1.000319829 | O100: 0.08048372358 | P100: 39.40318437 | Q100: 0.08048372358 | R100: 0.4926467863 | S100: 0.4926468619 | T100: 0.08048372358 | U100: 0.08048372358 | Z100: 36.07617319 | AA100: 0 | AB100: 0 | AC100: 0.00438 | AD100: 0 | AE100: 0 | AF100: =(P100-Z100)*IF((Vcc_max-C100)>$F$4,1,0) -> 3.327011179
A101: 74 | B101: 0.7534545455 | C101: 0.444 | D101: 3.251907926 | E101: 0.08156024064 | F101: 0.08156024064 | G101: 3.260434769 | H101: 3.260281254 | I101: 2.78040991 | J101: 0.01620193956 | K101: 1.016563941 | L101: 0.08156024064 | M101: 3.255905339 | N101: 1.011489736 | O101: 0.08156024064 | P101: 39.43149566 | Q101: 0.08156024064 | R101: 0.4987774314 | S101: 0.4987775078 | T101: 0.08156024064 | U101: 0.08156024064 | Z101: 36.09021197 | AA101: 0 | AB101: 0 | AC101: 0.00444 | AD101: 0 | AE101: 0 | AF101: =(P101-Z101)*IF((Vcc_max-C101)>$F$4,1,0) -> 3.341283684
A102: 75 | B102: 0.7636363636 | C102: 0.45 | D102: 3.2509125 | E102: 0.08263605485 | F102: 0.08263605485 | G102: 3.259568074 | H102: 3.25935567 | I102: 2.792271102 | J102: 0.01619698517 | K102: 1.027715539 | L102: 0.08263605485 | M102: 3.254912813 | N102: 1.022599322 | O102: 0.08263605485 | P102: 39.45953939 | Q102: 0.08263605485 | R102: 0.5048922508 | S102: 0.5048923281 | T102: 0.08263605485 | U102: 0.08263605485 | Z102: 36.10423242 | AA102: 0 | AB102: 0 | AC102: 0.0045 | AD102: 0 | AE102: 0 | AF102: =(P102-Z102)*IF((Vcc_max-C102)>$F$4,1,0) -> 3.355306966
A103: 76 | B103: 0.7738181818 | C103: 0.456 | D103: 3.249916354 | E103: 0.08371116622 | F103: 0.08371116622 | G103: 3.258688294 | H103: 3.258422366 | I103: 2.803808868 | J103: 0.01619202719 | K103: 1.038806538 | L103: 0.08371116622 | M103: 3.253919568 | N103: 1.033648883 | O103: 0.08371116622 | P103: 39.48732115 | Q103: 0.08371116622 | R103: 0.5109912781 | S103: 0.5109913562 | T103: 0.08371116622 | U103: 0.08371116622 | Z103: 36.11823457 | AA103: 0 | AB103: 0 | AC103: 0.00456 | AD103: 0 | AE103: 0 | AF103: =(P103-Z103)*IF((Vcc_max-C103)>$F$4,1,0) -> 3.369086579
A104: 77 | B104: 0.784 | C104: 0.462 | D104: 3.248919489 | E104: 0.08478557474 | F104: 0.08478557474 | G104: 3.257796687 | H104: 3.257482116 | I104: 2.815031326 | J104: 0.01618706562 | K104: 1.049837237 | L104: 0.08478557474 | M104: 3.252925602 | N104: 1.044638713 | O104: 0.08478557474 | P104: 39.51484636 | Q104: 0.08478557474 | R104: 0.5170745466 | S104: 0.5170746256 | T104: 0.08478557474 | U104: 0.08478557474 | Z104: 36.13221844 | AA104: 0 | AB104: 0 | AC104: 0.00462 | AD104: 0 | AE104: 0 | AF104: =(P104-Z104)*IF((Vcc_max-C104)>$F$4,1,0) -> 3.382627919
A105: 78 | B105: 0.7941818182 | C105: 0.468 | D105: 3.247921903 | E105: 0.0858592804 | F105: 0.0858592804 | G105: 3.25689438 | H105: 3.256535607 | I105: 2.82594639 | J105: 0.01618210047 | K105: 1.060807934 | L105: 0.0858592804 | M105: 3.251930916 | N105: 1.055569104 | O105: 0.0858592804 | P105: 39.54212028 | Q105: 0.0858592804 | R105: 0.5231420899 | S105: 0.5231421697 | T105: 0.0858592804 | U105: 0.0858592804 | Z105: 36.14618405 | AA105: 0 | AB105: 0 | AC105: 0.00468 | AD105: 0 | AE105: 0 | AF105: =(P105-Z105)*IF((Vcc_max-C105)>$F$4,1,0) -> 3.39593623
A106: 79 | B106: 0.8043636364 | C106: 0.474 | D106: 3.246923597 | E106: 0.0869322832 | F106: 0.0869322832 | G106: 3.25598239 | H106: 3.255583453 | I106: 2.836561775 | J106: 0.01617713173 | K106: 1.071718923 | L106: 0.0869322832 | M106: 3.250935511 | N106: 1.066440348 | O106: 0.0869322832 | P106: 39.56914805 | Q106: 0.0869322832 | R106: 0.5291939412 | S106: 0.5291940219 | T106: 0.0869322832 | U106: 0.0869322832 | Z106: 36.16013144 | AA106: 0 | AB106: 0 | AC106: 0.00474 | AD106: 0 | AE106: 0 | AF106: =(P106-Z106)*IF((Vcc_max-C106)>$F$4,1,0) -> 3.409016612
A107: 80 | B107: 0.8145454545 | C107: 0.48 | D107: 3.245924571 | E107: 0.08800458312 | F107: 0.08800458312 | G107: 3.255061625 | H107: 3.254626197 | I107: 2.846885001 | J107: 0.01617215941 | K107: 1.0825705 | L107: 0.08800458312 | M107: 3.249939385 | N107: 1.077252734 | O107: 0.08800458312 | P107: 39.59593465 | Q107: 0.08800458312 | R107: 0.5352301339 | S107: 0.5352302153 | T107: 0.08800458312 | U107: 0.08800458312 | Z107: 36.17406063 | AA107: 0 | AB107: 0 | AC107: 0.0048 | AD107: 0 | AE107: 0 | AF107: =(P107-Z107)*IF((Vcc_max-C107)>$F$4,1,0) -> 3.421874023
A108: 81 | B108: 0.8247272727 | C108: 0.486 | D108: 3.244924826 | E108: 0.08907618017 | F108: 0.08907618017 | G108: 3.254132907 | H108: 3.253664323 | I108: 2.8569234 | J108: 0.0161671835 | K108: 1.093362957 | L108: 0.08907618017 | M108: 3.248942539 | N108: 1.088006551 | O108: 0.08907618017 | P108: 39.62248492 | Q108: 0.08907618017 | R108: 0.541250701 | S108: 0.5412507833 | T108: 0.08907618017 | U108: 0.08907618017 | Z108: 36.18797163 | AA108: 0 | AB108: 0 | AC108: 0.00486 | AD108: 0 | AE108: 0 | AF108: =(P108-Z108)*IF((Vcc_max-C108)>$F$4,1,0) -> 3.434513289
A109: 82 | B109: 0.8349090909 | C109: 0.492 | D109: 3.24392436 | E109: 0.09014707433 | F109: 0.09014707433 | G109: 3.253196968 | H109: 3.252698263 | I109: 2.866684119 | J109: 0.016162204 | K109: 1.104096586 | L109: 0.09014707433 | M109: 3.247944973 | N109: 1.098702085 | O109: 0.09014707433 | P109: 39.64880359 | Q109: 0.09014707433 | R109: 0.5472556757 | S109: 0.5472557588 | T109: 0.09014707433 | U109: 0.09014707433 | Z109: 36.20186449 | AA109: 0 | AB109: 0 | AC109: 0.00492 | AD109: 0 | AE109: 0 | AF109: =(P109-Z109)*IF((Vcc_max-C109)>$F$4,1,0) -> 3.446939102
A110: 83 | B110: 0.8450909091 | C110: 0.498 | D110: 3.242923174 | E110: 0.09121726561 | F110: 0.09121726561 | G110: 3.252254471 | H110: 3.251728401 | I110: 2.876174125 | J110: 0.01615722092 | K110: 1.114771676 | L110: 0.09121726561 | M110: 3.246946688 | N110: 1.109339622 | O110: 0.09121726561 | P110: 39.67489526 | Q110: 0.09121726561 | R110: 0.5532450911 | S110: 0.5532451749 | T110: 0.09121726561 | U110: 0.09121726561 | Z110: 36.21573922 | AA110: 0 | AB110: 0 | AC110: 0.00498 | AD110: 0 | AE110: 0 | AF110: =(P110-Z110)*IF((Vcc_max-C110)>$F$4,1,0) -> 3.459156034
A111: 84 | B111: 0.8552727273 | C111: 0.504 | D111: 3.241921269 | E111: 0.092286754 | F111: 0.092286754 | G111: 3.251306009 | H111: 3.250755075 | I111: 2.885400211 | J111: 0.01615223425 | K111: 1.125388516 | L111: 0.092286754 | M111: 3.245947682 | N111: 1.119919446 | O111: 0.092286754 | P111: 39.70076439 | Q111: 0.092286754 | R111: 0.55921898 | S111: 0.5592190647 | T111: 0.092286754 | U111: 0.092286754 | Z111: 36.22959586 | AA111: 0 | AB111: 0 | AC111: 0.00504 | AD111: 0 | AE111: 0 | AF111: =(P111-Z111)*IF((Vcc_max-C111)>$F$4,1,0) -> 3.471168532
A112: 85 | B112: 0.8654545455 | C112: 0.51 | D112: 3.240918643 | E112: 0.09335553948 | F112: 0.09335553948 | G112: 3.250352114 | H112: 3.249778591 | I112: 2.894368997 | J112: 0.01614724399 | K112: 1.135947392 | L112: 0.09335553948 | M112: 3.244947956 | N112: 1.13044184 | O112: 0.09335553948 | P112: 39.72641534 | Q112: 0.09335553948 | R112: 0.5651773753 | S112: 0.5651774608 | T112: 0.09335553948 | U112: 0.09335553948 | Z112: 36.24343442 | AA112: 0 | AB112: 0 | AC112: 0.0051 | AD112: 0 | AE112: 0 | AF112: =(P112-Z112)*IF((Vcc_max-C112)>$F$4,1,0) -> 3.482980928
A113: 86 | B113: 0.8756363636 | C113: 0.516 | D113: 3.239915297 | E113: 0.09442362206 | F113: 0.09442362206 | G113: 3.249393267 | H113: 3.248799216 | I113: 2.903086938 | J113: 0.01614225015 | K113: 1.146448592 | L113: 0.09442362206 | M113: 3.24394751 | N113: 1.140907084 | O113: 0.09442362206 | P113: 39.75185237 | Q113: 0.09442362206 | R113: 0.57112031 | S113: 0.5711203963 | T113: 0.09442362206 | U113: 0.09442362206 | Z113: 36.25725493 | AA113: 0 | AB113: 0 | AC113: 0.00516 | AD113: 0 | AE113: 0 | AF113: =(P113-Z113)*IF((Vcc_max-C113)>$F$4,1,0) -> 3.49459744
A114: 87 | B114: 0.8858181818 | C114: 0.522 | D114: 3.238911231 | E114: 0.09549100173 | F114: 0.09549100173 | G114: 3.248429896 | H114: 3.247817192 | I114: 2.911560327 | J114: 0.01613725272 | K114: 1.156892397 | L114: 0.09549100173 | M114: 3.242946344 | N114: 1.151315459 | O114: 0.09549100173 | P114: 39.77707959 | Q114: 0.09549100173 | R114: 0.5770478167 | S114: 0.5770479038 | T114: 0.09549100173 | U114: 0.09549100173 | Z114: 36.27105741 | AA114: 0 | AB114: 0 | AC114: 0.00522 | AD114: 0 | AE114: 0 | AF114: =(P114-Z114)*IF((Vcc_max-C114)>$F$4,1,0) -> 3.50602218
A115: 88 | B115: 0.896 | C115: 0.528 | D115: 3.237906446 | E115: 0.09655767849 | F115: 0.09655767849 | G115: 3.247462389 | H115: 3.246832732 | I115: 2.919795297 | J115: 0.01613225171 | K115: 1.167279092 | L115: 0.09655767849 | M115: 3.241944458 | N115: 1.161667243 | O115: 0.09655767849 | P115: 39.80210105 | Q115: 0.09655767849 | R115: 0.582959928 | S115: 0.5829600159 | T115: 0.09655767849 | U115: 0.09655767849 | Z115: 36.2848419 | AA115: 0 | AB115: 0 | AC115: 0.00528 | AD115: 0 | AE115: 0 | AF115: =(P115-Z115)*IF((Vcc_max-C115)>$F$4,1,0) -> 3.517259151
A116: 89 | B116: 0.9061818182 | C116: 0.534 | D116: 3.23690094 | E116: 0.09762365232 | F116: 0.09762365232 | G116: 3.246491093 | H116: 3.245846024 | I116: 2.927797828 | J116: 0.01612724711 | K116: 1.177608958 | L116: 0.09762365232 | M116: 3.240941852 | N116: 1.171962713 | O116: 0.09762365232 | P116: 39.82692068 | Q116: 0.09762365232 | R116: 0.5888566767 | S116: 0.5888567653 | T116: 0.09762365232 | U116: 0.09762365232 | Z116: 36.29860842 | AA116: 0 | AB116: 0 | AC116: 0.00534 | AD116: 0 | AE116: 0 | AF116: =(P116-Z116)*IF((Vcc_max-C116)>$F$4,1,0) -> 3.528312256
A117: 90 | B117: 0.9163636364 | C117: 0.54 | D117: 3.235894714 | E117: 0.09868892322 | F117: 0.09868892322 | G117: 3.24551632 | H117: 3.244857239 | I117: 2.93557375 | J117: 0.01612223892 | K117: 1.187882274 | L117: 0.09868892322 | M117: 3.239938526 | N117: 1.182202145 | O117: 0.09868892322 | P117: 39.85154228 | Q117: 0.09868892322 | R117: 0.5947380951 | S117: 0.5947381845 | T117: 0.09868892322 | U117: 0.09868892322 | Z117: 36.31235699 | AA117: 0 | AB117: 0 | AC117: 0.0054 | AD117: 0 | AE117: 0 | AF117: =(P117-Z117)*IF((Vcc_max-C117)>$F$4,1,0) -> 3.539185298
A118: 91 | B118: 0.9265454545 | C118: 0.546 | D118: 3.234887769 | E118: 0.09975349119 | F118: 0.09975349119 | G118: 3.244538349 | H118: 3.243866526 | I118: 2.943128744 | J118: 0.01611722715 | K118: 1.198099319 | L118: 0.09975349119 | M118: 3.23893448 | N118: 1.192385813 | O118: 0.09975349119 | P118: 39.87596962 | Q118: 0.09975349119 | R118: 0.6006042158 | S118: 0.600604306 | T118: 0.09975349119 | U118: 0.09975349119 | Z118: 36.32608763 | AA118: 0 | AB118: 0 | AC118: 0.00546 | AD118: 0 | AE118: 0 | AF118: =(P118-Z118)*IF((Vcc_max-C118)>$F$4,1,0) -> 3.549881983
A119: 92 | B119: 0.9367272727 | C119: 0.552 | D119: 3.233880103 | E119: 0.1008173562 | F119: 0.1008173562 | G119: 3.243557434 | H119: 3.242874019 | I119: 2.950468351 | J119: 0.01611221179 | K119: 1.208260371 | L119: 0.1008173562 | M119: 3.237929715 | N119: 1.202513989 | O119: 0.1008173562 | P119: 39.90020631 | Q119: 0.1008173562 | R119: 0.6064550711 | S119: 0.6064551621 | T119: 0.1008173562 | U119: 0.1008173562 | Z119: 36.33980038 | AA119: 0 | AB119: 0 | AC119: 0.00552 | AD119: 0 | AE119: 0 | AF119: =(P119-Z119)*IF((Vcc_max-C119)>$F$4,1,0) -> 3.560405927
A120: 93 | B120: 0.9469090909 | C120: 0.558 | D120: 3.232871717 | E120: 0.1018805183 | F120: 0.1018805183 | G120: 3.2425738 | H120: 3.241879836 | I120: 2.95759797 | J120: 0.01610719284 | K120: 1.218365704 | L120: 0.1018805183 | M120: 3.236924229 | N120: 1.212586947 | O120: 0.1018805183 | P120: 39.92425591 | Q120: 0.1018805183 | R120: 0.6122906933 | S120: 0.6122907851 | T120: 0.1018805183 | U120: 0.1018805183 | Z120: 36.35349526 | AA120: 0 | AB120: 0 | AC120: 0.00558 | AD120: 0 | AE120: 0 | AF120: =(P120-Z120)*IF((Vcc_max-C120)>$F$4,1,0) -> 3.570760653
A121: 94 | B121: 0.9570909091 | C121: 0.564 | D121: 3.231862611 | E121: 0.1029429774 | F121: 0.1029429774 | G121: 3.241587649 | H121: 3.240884083 | I121: 2.964522866 | J121: 0.01610217031 | K121: 1.228415594 | L121: 0.1029429774 | M121: 3.235918023 | N121: 1.222604955 | O121: 0.1029429774 | P121: 39.94812188 | Q121: 0.1029429774 | R121: 0.6181111148 | S121: 0.6181112073 | T121: 0.1029429774 | U121: 0.1029429774 | Z121: 36.36717228 | AA121: 0 | AB121: 0 | AC121: 0.00564 | AD121: 0 | AE121: 0 | AF121: =(P121-Z121)*IF((Vcc_max-C121)>$F$4,1,0) -> 3.580949597
A122: 95 | B122: 0.9672727273 | C122: 0.57 | D122: 3.230852786 | E122: 0.1040047336 | F122: 0.1040047336 | G122: 3.240599166 | H122: 3.239886854 | I122: 2.971248172 | J122: 0.0160971442 | K122: 1.238410313 | L122: 0.1040047336 | M122: 3.234911097 | N122: 1.232568283 | O122: 0.1040047336 | P122: 39.9718076 | Q122: 0.1040047336 | R122: 0.6239163675 | S122: 0.6239164608 | T122: 0.1040047336 | U122: 0.1040047336 | Z122: 36.38083149 | AA122: 0 | AB122: 0 | AC122: 0.0057 | AD122: 0 | AE122: 0 | AF122: =(P122-Z122)*IF((Vcc_max-C122)>$F$4,1,0) -> 3.590976112
A123: 96 | B123: 0.9774545455 | C123: 0.576 | D123: 3.22984224 | E123: 0.1050657868 | F123: 0.1050657868 | G123: 3.239608513 | H123: 3.238888232 | I123: 2.977778889 | J123: 0.01609211449 | K123: 1.248350133 | L123: 0.1050657868 | M123: 3.233903451 | N123: 1.242477198 | O123: 0.1050657868 | P123: 39.99531636 | Q123: 0.1050657868 | R123: 0.6297064837 | S123: 0.6297065777 | T123: 0.1050657868 | U123: 0.1050657868 | Z123: 36.39447289 | AA123: 0 | AB123: 0 | AC123: 0.00576 | AD123: 0 | AE123: 0 | AF123: =(P123-Z123)*IF((Vcc_max-C123)>$F$4,1,0) -> 3.600843466
A124: 97 | B124: 0.9876363636 | C124: 0.582 | D124: 3.228830974 | E124: 0.1061261371 | F124: 0.1061261371 | G124: 3.238615839 | H124: 3.237888293 | I124: 2.984119896 | J124: 0.0160870812 | K124: 1.258235324 | L124: 0.1061261371 | M124: 3.232895085 | N124: 1.252331967 | O124: 0.1061261371 | P124: 40.01865137 | Q124: 0.1061261371 | R124: 0.6354814953 | S124: 0.6354815901 | T124: 0.1061261371 | U124: 0.1061261371 | Z124: 36.40809653 | AA124: 0 | AB124: 0 | AC124: 0.00582 | AD124: 0 | AE124: 0 | AF124: =(P124-Z124)*IF((Vcc_max-C124)>$F$4,1,0) -> 3.610554847
A125: 98 | B125: 0.9978181818 | C125: 0.588 | D125: 3.227818989 | E125: 0.1071857843 | F125: 0.1071857843 | G125: 3.237621274 | H125: 3.236887101 | I125: 2.990275945 | J125: 0.01608204433 | K125: 1.268066155 | L125: 0.1071857843 | M125: 3.231885999 | N125: 1.262132854 | O125: 0.1071857843 | P125: 40.04181578 | Q125: 0.1071857843 | R125: 0.6412414343 | S125: 0.6412415298 | T125: 0.1071857843 | U125: 0.1071857843 | Z125: 36.42170241 | AA125: 0 | AB125: 0 | AC125: 0.00588 | AD125: 0 | AE125: 0 | AF125: =(P125-Z125)*IF((Vcc_max-C125)>$F$4,1,0) -> 3.620113366
A126: 99 | B126: 1.008 | C126: 0.594 | D126: 3.226806283 | E126: 0.1082447286 | F126: 0.1082447286 | G126: 3.236624939 | H126: 3.235884717 | I126: 2.996251673 | J126: 0.01607700387 | K126: 1.277842894 | L126: 0.1082447286 | M126: 3.230876193 | N126: 1.271880123 | O126: 0.1082447286 | P126: 40.06481263 | Q126: 0.1082447286 | R126: 0.6469863326 | S126: 0.6469864288 | T126: 0.1082447286 | U126: 0.1082447286 | Z126: 36.43529057 | AA126: 0 | AB126: 0 | AC126: 0.00594 | AD126: 0 | AE126: 0 | AF126: =(P126-Z126)*IF((Vcc_max-C126)>$F$4,1,0) -> 3.629522059
A127: 100 | B127: 1.018181818 | C127: 0.6 | D127: 3.225792857 | E127: 0.1093029699 | F127: 0.1093029699 | G127: 3.23562694 | H127: 3.234881191 | I127: 3.002051597 | J127: 0.01607195982 | K127: 1.287565807 | L127: 0.1093029699 | M127: 3.229865667 | N127: 1.281574037 | O127: 0.1093029699 | P127: 40.08764492 | Q127: 0.1093029699 | R127: 0.6527162219 | S127: 0.6527163189 | T127: 0.1093029699 | U127: 0.1093029699 | Z127: 36.44886104 | AA127: 0 | AB127: 0 | AC127: 0.006 | AD127: 0 | AE127: 0 | AF127: =(P127-Z127)*IF((Vcc_max-C127)>$F$4,1,0) -> 3.638783886
A128: 101 | B128: 1.028363636 | C128: 0.606 | D128: 3.224778711 | E128: 0.1103605082 | F128: 0.1103605082 | G128: 3.234627373 | H128: 3.233876571 | I128: 3.007680121 | J128: 0.01606691218 | K128: 1.297235159 | L128: 0.1103605082 | M128: 3.228854421 | N128: 1.291214856 | O128: 0.1103605082 | P128: 40.11031556 | Q128: 0.1103605082 | R128: 0.6584311341 | S128: 0.6584312318 | T128: 0.1103605082 | U128: 0.1103605082 | Z128: 36.46241382 | AA128: 0 | AB128: 0 | AC128: 0.00606 | AD128: 0 | AE128: 0 | AF128: =(P128-Z128)*IF((Vcc_max-C128)>$F$4,1,0) -> 3.647901737
A129: 102 | B129: 1.038545455 | C129: 0.612 | D129: 3.223763846 | E129: 0.1114173435 | F129: 0.1114173435 | G129: 3.233626324 | H129: 3.232870898 | I129: 3.01314154 | J129: 0.01606186096 | K129: 1.306851214 | L129: 0.1114173435 | M129: 3.227842456 | N129: 1.30080284 | O129: 0.1114173435 | P129: 40.13282739 | Q129: 0.1114173435 | R129: 0.6641311007 | S129: 0.6641311992 | T129: 0.1114173435 | U129: 0.1114173435 | Z129: 36.47594896 | AA129: 0 | AB129: 0 | AC129: 0.00612 | AD129: 0 | AE129: 0 | AF129: =(P129-Z129)*IF((Vcc_max-C129)>$F$4,1,0) -> 3.656878433
A130: 103 | B130: 1.048727273 | C130: 0.618 | D130: 3.22274826 | E130: 0.1124734758 | F130: 0.1124734758 | G130: 3.232623871 | H130: 3.231864209 | I130: 3.018440039 | J130: 0.01605680616 | K130: 1.316414234 | L130: 0.1124734758 | M130: 3.22682977 | N130: 1.310338248 | O130: 0.1124734758 | P130: 40.1551832 | Q130: 0.1124734758 | R130: 0.6698161534 | S130: 0.6698162526 | T130: 0.1124734758 | U130: 0.1124734758 | Z130: 36.48946647 | AA130: 0 | AB130: 0 | AC130: 0.00618 | AD130: 0 | AE130: 0 | AF130: =(P130-Z130)*IF((Vcc_max-C130)>$F$4,1,0) -> 3.665716725
A131: 104 | B131: 1.058909091 | C131: 0.624 | D131: 3.221731954 | E131: 0.1135289051 | F131: 0.1135289051 | G131: 3.231620083 | H131: 3.230856537 | I131: 3.023579698 | J131: 0.01605174776 | K131: 1.325924479 | L131: 0.1135289051 | M131: 3.225816364 | N131: 1.319821336 | O131: 0.1135289051 | P131: 40.17738568 | Q131: 0.1135289051 | R131: 0.6754863237 | S131: 0.6754864237 | T131: 0.1135289051 | U131: 0.1135289051 | Z131: 36.50296638 | AA131: 0 | AB131: 0 | AC131: 0.00624 | AD131: 0 | AE131: 0 | AF131: =(P131-Z131)*IF((Vcc_max-C131)>$F$4,1,0) -> 3.674419299
A132: 105 | B132: 1.069090909 | C132: 0.63 | D132: 3.220714929 | E132: 0.1145836314 | F132: 0.1145836314 | G132: 3.230615022 | H132: 3.22984791 | I132: 3.028564496 | J132: 0.01604668579 | K132: 1.33538221 | L132: 0.1145836314 | M132: 3.224802238 | N132: 1.329252361 | O132: 0.1145836314 | P132: 40.19943749 | Q132: 0.1145836314 | R132: 0.6811416431 | S132: 0.6811417437 | T132: 0.1145836314 | U132: 0.1145836314 | Z132: 36.51644871 | AA132: 0 | AB132: 0 | AC132: 0.0063 | AD132: 0 | AE132: 0 | AF132: =(P132-Z132)*IF((Vcc_max-C132)>$F$4,1,0) -> 3.682988778
A133: 106 | B133: 1.079272727 | C133: 0.636 | D133: 3.219697183 | E133: 0.1156376547 | F133: 0.1156376547 | G133: 3.229608745 | H133: 3.228838354 | I133: 3.033398309 | J133: 0.01604162022 | K133: 1.344787685 | L133: 0.1156376547 | M133: 3.223787392 | N133: 1.338631578 | O133: 0.1156376547 | P133: 40.22134122 | Q133: 0.1156376547 | R133: 0.6867821429 | S133: 0.6867822443 | T133: 0.1156376547 | U133: 0.1156376547 | Z133: 36.52991349 | AA133: 0 | AB133: 0 | AC133: 0.00636 | AD133: 0 | AE133: 0 | AF133: =(P133-Z133)*IF((Vcc_max-C133)>$F$4,1,0) -> 3.691427722
A134: 107 | B134: 1.089454545 | C134: 0.642 | D134: 3.218678717 | E134: 0.1166909749 | F134: 0.1166909749 | G134: 3.228601303 | H134: 3.227827894 | I134: 3.038084918 | J134: 0.01603655107 | K134: 1.354141161 | L134: 0.1166909749 | M134: 3.222771826 | N134: 1.347959238 | O134: 0.1166909749 | P134: 40.24309938 | Q134: 0.1166909749 | R134: 0.6924078544 | S134: 0.6924079565 | T134: 0.1166909749 | U134: 0.1166909749 | Z134: 36.54336075 | AA134: 0 | AB134: 0 | AC134: 0.00642 | AD134: 0 | AE134: 0 | AF134: =(P134-Z134)*IF((Vcc_max-C134)>$F$4,1,0) -> 3.699738629
A135: 108 | B135: 1.099636364 | C135: 0.648 | D135: 3.217659531 | E135: 0.1177435921 | F135: 0.1177435921 | G135: 3.22759274 | H135: 3.226816548 | I135: 3.042628007 | J135: 0.01603147833 | K135: 1.363442894 | L135: 0.1177435921 | M135: 3.22175554 | N135: 1.357235595 | O135: 0.1177435921 | P135: 40.26471443 | Q135: 0.1177435921 | R135: 0.698018809 | S135: 0.6980189118 | T135: 0.1177435921 | U135: 0.1177435921 | Z135: 36.55679049 | AA135: 0 | AB135: 0 | AC135: 0.00648 | AD135: 0 | AE135: 0 | AF135: =(P135-Z135)*IF((Vcc_max-C135)>$F$4,1,0) -> 3.707923938
A136: 109 | B136: 1.109818182 | C136: 0.654 | D136: 3.216639626 | E136: 0.1187955063 | F136: 0.1187955063 | G136: 3.226583098 | H136: 3.225804336 | I136: 3.04703117 | J136: 0.01602640201 | K136: 1.372693138 | L136: 0.1187955063 | M136: 3.220738534 | N136: 1.3664609 | O136: 0.1187955063 | P136: 40.28618879 | Q136: 0.1187955063 | R136: 0.7036150377 | S136: 0.7036151412 | T136: 0.1187955063 | U136: 0.1187955063 | Z136: 36.57020276 | AA136: 0 | AB136: 0 | AC136: 0.00654 | AD136: 0 | AE136: 0 | AF136: =(P136-Z136)*IF((Vcc_max-C136)>$F$4,1,0) -> 3.715986032
A137: 110 | B137: 1.12 | C137: 0.66 | D137: 3.215619 | E137: 0.1198467174 | F137: 0.1198467174 | G137: 3.225572412 | H137: 3.224791274 | I137: 3.051297908 | J137: 0.0160213221 | K137: 1.381892147 | L137: 0.1198467174 | M137: 3.219720808 | N137: 1.375635401 | O137: 0.1198467174 | P137: 40.30752481 | Q137: 0.1198467174 | R137: 0.7091965717 | S137: 0.7091966759 | T137: 0.1198467174 | U137: 0.1198467174 | Z137: 36.58359757 | AA137: 0 | AB137: 0 | AC137: 0.0066 | AD137: 0 | AE137: 0 | AF137: =(P137-Z137)*IF((Vcc_max-C137)>$F$4,1,0) -> 3.723927235
A138: 111 | B138: 1.130181818 | C138: 0.666 | D138: 3.214597654 | E138: 0.1208972255 | F138: 0.1208972255 | G138: 3.224560716 | H138: 3.223777375 | I138: 3.055431636 | J138: 0.0160162386 | K138: 1.391040173 | L138: 0.1208972255 | M138: 3.218702362 | N138: 1.384759348 | O138: 0.1208972255 | P138: 40.32872477 | Q138: 0.1208972255 | R138: 0.7147634421 | S138: 0.714763547 | T138: 0.1208972255 | U138: 0.1208972255 | Z138: 36.59697495 | AA138: 0 | AB138: 0 | AC138: 0.00666 | AD138: 0 | AE138: 0 | AF138: =(P138-Z138)*IF((Vcc_max-C138)>$F$4,1,0) -> 3.73174982
A139: 112 | B139: 1.140363636 | C139: 0.672 | D139: 3.213575589 | E139: 0.1219470305 | F139: 0.1219470305 | G139: 3.223548039 | H139: 3.222762653 | I139: 3.05943568 | J139: 0.01601115152 | K139: 1.400137466 | L139: 0.1219470305 | M139: 3.217683197 | N139: 1.393832987 | O139: 0.1219470305 | P139: 40.34979093 | Q139: 0.1219470305 | R139: 0.7203156797 | S139: 0.7203157853 | T139: 0.1219470305 | U139: 0.1219470305 | Z139: 36.61033492 | AA139: 0 | AB139: 0 | AC139: 0.00672 | AD139: 0 | AE139: 0 | AF139: =(P139-Z139)*IF((Vcc_max-C139)>$F$4,1,0) -> 3.739456004
A140: 113 | B140: 1.150545455 | C140: 0.678 | D140: 3.212552803 | E140: 0.1229961325 | F140: 0.1229961325 | G140: 3.222534408 | H140: 3.22174712 | I140: 3.063313285 | J140: 0.01600606085 | K140: 1.409184276 | L140: 0.1229961325 | M140: 3.216663311 | N140: 1.402856565 | O140: 0.1229961325 | P140: 40.37072546 | Q140: 0.1229961325 | R140: 0.7258533155 | S140: 0.7258534218 | T140: 0.1229961325 | U140: 0.1229961325 | Z140: 36.62367751 | AA140: 0 | AB140: 0 | AC140: 0.00678 | AD140: 0 | AE140: 0 | AF140: =(P140-Z140)*IF((Vcc_max-C140)>$F$4,1,0) -> 3.747047952
A141: 114 | B141: 1.160727273 | C141: 0.684 | D141: 3.211529297 | E141: 0.1240445313 | F141: 0.1240445313 | G141: 3.221519846 | H141: 3.220730784 | I141: 3.067067614 | J141: 0.0160009666 | K141: 1.418180851 | L141: 0.1240445313 | M141: 3.215642705 | N141: 1.411830325 | O141: 0.1240445313 | P141: 40.39153051 | Q141: 0.1240445313 | R141: 0.7313763804 | S141: 0.7313764874 | T141: 0.1240445313 | U141: 0.1240445313 | Z141: 36.63700274 | AA141: 0 | AB141: 0 | AC141: 0.00684 | AD141: 0 | AE141: 0 | AF141: =(P141-Z141)*IF((Vcc_max-C141)>$F$4,1,0) -> 3.75452778
A142: 115 | B142: 1.170909091 | C142: 0.69 | D142: 3.210505071 | E142: 0.1250922272 | F142: 0.1250922272 | G142: 3.220504375 | H142: 3.219713657 | I142: 3.070701749 | J142: 0.01599586876 | K142: 1.427127438 | L142: 0.1250922272 | M142: 3.214621379 | N142: 1.420754512 | O142: 0.1250922272 | P142: 40.41220818 | Q142: 0.1250922272 | R142: 0.736884905 | S142: 0.7368850127 | T142: 0.1250922272 | U142: 0.1250922272 | Z142: 36.65031062 | AA142: 0 | AB142: 0 | AC142: 0.0069 | AD142: 0 | AE142: 0 | AF142: =(P142-Z142)*IF((Vcc_max-C142)>$F$4,1,0) -> 3.761897552
A143: 116 | B143: 1.181090909 | C143: 0.696 | D143: 3.209480126 | E143: 0.1261392199 | F143: 0.1261392199 | G143: 3.219488015 | H143: 3.218695744 | I143: 3.074218698 | J143: 0.01599076733 | K143: 1.436024283 | L143: 0.1261392199 | M143: 3.213599333 | N143: 1.429629368 | O143: 0.1261392199 | P143: 40.43276049 | Q143: 0.1261392199 | R143: 0.7423789202 | S143: 0.7423790285 | T143: 0.1261392199 | U143: 0.1261392199 | Z143: 36.6636012 | AA143: 0 | AB143: 0 | AC143: 0.00696 | AD143: 0 | AE143: 0 | AF143: =(P143-Z143)*IF((Vcc_max-C143)>$F$4,1,0) -> 3.769159288
A144: 117 | B144: 1.191272727 | C144: 0.702 | D144: 3.20845446 | E144: 0.1271855096 | F144: 0.1271855096 | G144: 3.218470781 | H144: 3.217677054 | I144: 3.077621388 | J144: 0.01598566232 | K144: 1.444871631 | L144: 0.1271855096 | M144: 3.212576567 | N144: 1.438455133 | O144: 0.1271855096 | P144: 40.45318945 | Q144: 0.1271855096 | R144: 0.7478584564 | S144: 0.7478585654 | T144: 0.1271855096 | U144: 0.1271855096 | Z144: 36.67687449 | AA144: 0 | AB144: 0 | AC144: 0.00702 | AD144: 0 | AE144: 0 | AF144: =(P144-Z144)*IF((Vcc_max-C144)>$F$4,1,0) -> 3.776314958
A145: 118 | B145: 1.201454545 | C145: 0.708 | D145: 3.207428074 | E145: 0.1282310961 | F145: 0.1282310961 | G145: 3.217452691 | H145: 3.216657593 | I145: 3.080912677 | J145: 0.01598055372 | K145: 1.453669725 | L145: 0.1282310961 | M145: 3.211553081 | N145: 1.447232048 | O145: 0.1282310961 | P145: 40.473497 | Q145: 0.1282310961 | R145: 0.7533235443 | S145: 0.753323654 | T145: 0.1282310961 | U145: 0.1282310961 | Z145: 36.69013051 | AA145: 0 | AB145: 0 | AC145: 0.00708 | AD145: 0 | AE145: 0 | AF145: =(P145-Z145)*IF((Vcc_max-C145)>$F$4,1,0) -> 3.783366487
A146: 119 | B146: 1.211636364 | C146: 0.714 | D146: 3.206400969 | E146: 0.1292759796 | F146: 0.1292759796 | G146: 3.216433757 | H146: 3.215637367 | I146: 3.084095349 | J146: 0.01597544154 | K146: 1.462418807 | L146: 0.1292759796 | M146: 3.210528875 | N146: 1.455960351 | O146: 0.1292759796 | P146: 40.49368505 | Q146: 0.1292759796 | R146: 0.7587742144 | S146: 0.7587743247 | T146: 0.1292759796 | U146: 0.1292759796 | Z146: 36.70336929 | AA146: 0 | AB146: 0 | AC146: 0.00714 | AD146: 0 | AE146: 0 | AF146: =(P146-Z146)*IF((Vcc_max-C146)>$F$4,1,0) -> 3.790315756
A147: 120 | B147: 1.221818182 | C147: 0.72 | D147: 3.205373143 | E147: 0.13032016 | F147: 0.13032016 | G147: 3.215413993 | H147: 3.21461638 | I147: 3.087172118 | J147: 0.01597032577 | K147: 1.471119118 | L147: 0.13032016 | M147: 3.209503949 | N147: 1.46464028 | O147: 0.13032016 | P147: 40.51375546 | Q147: 0.13032016 | R147: 0.7642104971 | S147: 0.764210608 | T147: 0.13032016 | U147: 0.13032016 | Z147: 36.71659085 | AA147: 0 | AB147: 0 | AC147: 0.0072 | AD147: 0 | AE147: 0 | AF147: =(P147-Z147)*IF((Vcc_max-C147)>$F$4,1,0) -> 3.797164602
A148: 121 | B148: 1.232 | C148: 0.726 | D148: 3.204344597 | E148: 0.1313636372 | F148: 0.1313636372 | G148: 3.21439341 | H148: 3.213594637 | I148: 3.09014563 | J148: 0.01596520641 | K148: 1.479770897 | L148: 0.1313636372 | M148: 3.208478303 | N148: 1.473272071 | O148: 0.1313636372 | P148: 40.53371004 | Q148: 0.1313636372 | R148: 0.7696324227 | S148: 0.7696325343 | T148: 0.1313636372 | U148: 0.1313636372 | Z148: 36.72979522 | AA148: 0 | AB148: 0 | AC148: 0.00726 | AD148: 0 | AE148: 0 | AF148: =(P148-Z148)*IF((Vcc_max-C148)>$F$4,1,0) -> 3.803914821
A149: 122 | B149: 1.242181818 | C149: 0.732 | D149: 3.203315331 | E149: 0.1324064114 | F149: 0.1324064114 | G149: 3.213372017 | H149: 3.212572142 | I149: 3.093018465 | J149: 0.01596008347 | K149: 1.488374384 | L149: 0.1324064114 | M149: 3.207451938 | N149: 1.48185596 | O149: 0.1324064114 | P149: 40.55355058 | Q149: 0.1324064114 | R149: 0.7750400215 | S149: 0.7750401338 | T149: 0.1324064114 | U149: 0.1324064114 | Z149: 36.74298241 | AA149: 0 | AB149: 0 | AC149: 0.00732 | AD149: 0 | AE149: 0 | AF149: =(P149-Z149)*IF((Vcc_max-C149)>$F$4,1,0) -> 3.810568167
A150: 123 | B150: 1.252363636 | C150: 0.738 | D150: 3.202285346 | E150: 0.1334484824 | F150: 0.1334484824 | G150: 3.212349824 | H150: 3.211548899 | I150: 3.095793137 | J150: 0.01595495694 | K150: 1.496929815 | L150: 0.1334484824 | M150: 3.206424852 | N150: 1.490392179 | O150: 0.1334484824 | P150: 40.57327881 | Q150: 0.1334484824 | R150: 0.7804333238 | S150: 0.7804334367 | T150: 0.1334484824 | U150: 0.1334484824 | Z150: 36.75615246 | AA150: 0 | AB150: 0 | AC150: 0.00738 | AD150: 0 | AE150: 0 | AF150: =(P150-Z150)*IF((Vcc_max-C150)>$F$4,1,0) -> 3.817126352
A151: 124 | B151: 1.262545455 | C151: 0.744 | D151: 3.20125464 | E151: 0.1344898503 | F151: 0.1344898503 | G151: 3.211326838 | H151: 3.21052491 | I151: 3.098472098 | J151: 0.01594982682 | K151: 1.505437426 | L151: 0.1344898503 | M151: 3.205397046 | N151: 1.498880962 | O151: 0.1344898503 | P151: 40.59289644 | Q151: 0.1344898503 | R151: 0.7858123597 | S151: 0.7858124732 | T151: 0.1344898503 | U151: 0.1344898503 | Z151: 36.76930538 | AA151: 0 | AB151: 0 | AC151: 0.00744 | AD151: 0 | AE151: 0 | AF151: =(P151-Z151)*IF((Vcc_max-C151)>$F$4,1,0) -> 3.823591052
A152: 125 | B152: 1.272727273 | C152: 0.75 | D152: 3.200223214 | E152: 0.1355305151 | F152: 0.1355305151 | G152: 3.210303068 | H152: 3.209500179 | I152: 3.101057737 | J152: 0.01594469312 | K152: 1.513897454 | L152: 0.1355305151 | M152: 3.20436852 | N152: 1.507322541 | O152: 0.1355305151 | P152: 40.61240511 | Q152: 0.1355305151 | R152: 0.7911771592 | S152: 0.7911772735 | T152: 0.1355305151 | U152: 0.1355305151 | Z152: 36.78244121 | AA152: 0 | AB152: 0 | AC152: 0.0075 | AD152: 0 | AE152: 0 | AF152: =(P152-Z152)*IF((Vcc_max-C152)>$F$4,1,0) -> 3.829963904
A153: 126 | B153: 1.282909091 | C153: 0.756 | D153: 3.199191069 | E153: 0.1365704767 | F153: 0.1365704767 | G153: 3.20927852 | H153: 3.208474708 | I153: 3.103552383 | J153: 0.01593955583 | K153: 1.52231013 | L153: 0.1365704767 | M153: 3.203339274 | N153: 1.515717146 | O153: 0.1365704767 | P153: 40.63180645 | Q153: 0.1365704767 | R153: 0.7965277525 | S153: 0.7965278674 | T153: 0.1365704767 | U153: 0.1365704767 | Z153: 36.79555995 | AA153: 0 | AB153: 0 | AC153: 0.00756 | AD153: 0 | AE153: 0 | AF153: =(P153-Z153)*IF((Vcc_max-C153)>$F$4,1,0) -> 3.836246505
A154: 127 | B154: 1.293090909 | C154: 0.762 | D154: 3.198158203 | E154: 0.1376097352 | F154: 0.1376097352 | G154: 3.2082532 | H154: 3.207448499 | I154: 3.105958308 | J154: 0.01593441496 | K154: 1.530675689 | L154: 0.1376097352 | M154: 3.202309308 | N154: 1.524065007 | O154: 0.1376097352 | P154: 40.65110206 | Q154: 0.1376097352 | R154: 0.8018641695 | S154: 0.801864285 | T154: 0.1376097352 | U154: 0.1376097352 | Z154: 36.80866164 | AA154: 0 | AB154: 0 | AC154: 0.00762 | AD154: 0 | AE154: 0 | AF154: =(P154-Z154)*IF((Vcc_max-C154)>$F$4,1,0) -> 3.84244042
A155: 128 | B155: 1.303272727 | C155: 0.768 | D155: =(Vcc_max-C155)*($AD$13+IF(C155>=$AD$8,$AD$7,0)+(IF(C155>=$AD$6,C155,0)/$AD$5)+IF(C155>$AD$10,($AD$9/C155),0)) -> 3.197124617 | E155: 0.1386482906 | F155: 0.1386482906 | G155: 3.207227113 | H155: 3.206421554 | I155: 3.108277725 | J155: 0.0159292705 | K155: 1.538994361 | L155: 0.1386482906 | M155: 3.201278622 | N155: 1.532366351 | O155: 0.1386482906 | P155: 40.67029347 | Q155: 0.1386482906 | R155: 0.80718644 | S155: 0.8071865561 | T155: 0.1386482906 | U155: 0.1386482906 | Z155: 36.82174629 | AA155: 0 | AB155: 0 | AC155: 0.00768 | AD155: 0 | AE155: 0 | AF155: =(P155-Z155)*IF((Vcc_max-C155)>$F$4,1,0) -> 3.848547175
A156: 129 | B156: =($AD$11/2000)*(A156) -> 1.313454545 | C156: =$AD$13*B156*10^-3/($AD$4*10^-6) -> 0.774 | D156: 3.196090311 | E156: =(D155+((((EXP(-(B156-B155)*10^-3/$F$14)))*(E155-D155)))) -> 0.1396861428 | F156: =(D155+((((EXP(-(B156-B155)*10^-3/$F$15)))*(F155-D155)))) -> 0.1396861428 | G156: =(D155+((((EXP(-(B156-B155)*10^-3/$F$16)))*(G155-D155)))) -> 3.206200263 | H156: =(D155+((((EXP(-(B156-B155)*10^-3/$F$17)))*(H155-D155)))) -> 3.205393875 | I156: =(D155+((((EXP(-(B156-B155)*10^-3/$F$18)))*(I155-D155)))) -> 3.110512793 | J156: =(D155+((((EXP(-(B156-B155)*10^-3/$F$19)))*(JW155-D155)))) -> 0.01592412245 | K156: =(D155+((((EXP(-(B156-B155)*10^-3/$F$20)))*(K155-D155)))) -> 1.547266377 | L156: =(D155+((((EXP(-(B156-B155)*10^-3/$F$21)))*(L155-D155)))) -> 0.1396861428 | M156: =(D155+((((EXP(-(B156-B155)*10^-3/$F$22)))*(M155-D155)))) -> 3.200247216 | N156: =(D155+((((EXP(-(B156-B155)*10^-3/$F$23)))*(N155-D155)))) -> 1.540621406 | O156: 0.1396861428 | P156: 40.6893822 | Q156: =(D155+((((EXP(-(B156-B155)*10^-3/$B$14)))*(Q155-D155)))) -> 0.1396861428 | R156: =(D155+((((EXP(-(B156-B155)*10^-3/$B$15)))*(R155-D155)))) -> 0.8124945939 | S156: =(D155+((((EXP(-(B156-B155)*10^-3/$B$16)))*(S155-D155)))) -> 0.8124947106 | T156: =(D155+((((EXP(-(B156-B155)*10^-3/$B$17)))*(T155-D155)))) -> 0.1396861428 | U156: =(D155+((((EXP(-(B156-B155)*10^-3/$B$18)))*(U155-D155)))) -> 0.1396861428 | Z156: 36.83481394 | AA156: =IF((P156-Z156)>=64,1,0) -> 0 | AB156: =IF((P156>=154),1,0) -> 0 | AC156: =IF(C156>=$AD$6,C156,0)/$AD$5 -> 0.00774 | AD156: =IF(C156>=$AD$8,$AD$7,0) -> 0 | AE156: =IF(C156>$AD$10,($AD$9/C156),0) -> 0 | AF156: =(P156-Z156)*IF((Vcc_max-C156)>$F$4,1,0) -> 3.854568263
A157: 130 | B157: 1.323636364 | C157: 0.78 | D157: 3.195055286 | E157: 0.1407232918 | F157: 0.1407232918 | G157: 3.205172656 | H157: 3.204365464 | I157: 3.112665615 | J157: 0.01591897082 | K157: 1.555491966 | L157: 0.1407232918 | M157: 3.19921509 | N157: 1.548830398 | O157: =(D156+((((EXP(-(B157-B156)*10^-3/$F$24)))*(O156-D156)))) -> 0.1407232918 | P157: =$C$6+(E157*$G$14)+(F157*$G$15)+(G157*$G$16)+(H157*$G$17)+(I157*$G$18)+(J157*$G$19)+(K157*$G$20)+(L157*$G$21)+(M157*$G$22)+(N157*$G$23)+(O157*$G$24) -> 40.70836974 | Q157: 0.1407232918 | R157: 0.8177886609 | S157: 0.8177887783 | T157: 0.1407232918 | U157: 0.1407232918 | Z157: =$C$6+(Q157*$C$14)+(R157*$C$15)+(S157*$C$16)+(T157*$C$17)+(U157*$C$18) -> 36.8478646 | AA157: 0 | AB157: 0 | AC157: 0.0078 | AD157: 0 | AE157: 0 | AF157: =(P157-Z157)*IF((Vcc_max-C157)>$F$4,1,0) -> 3.860505144
A158: 131 | B158: 1.333818182 | C158: 0.786 | D158: 3.19401954 | E158: 0.1417597377 | F158: 0.1417597377 | G158: 3.204144295 | H158: 3.203336322 | I158: 3.114738243 | J158: 0.0159138156 | K158: 1.563671356 | L158: 0.1417597377 | M158: 3.198182244 | N158: 1.556993551 | O158: 0.1417597377 | P158: 40.72725754 | Q158: 0.1417597377 | R158: 0.8230686707 | S158: 0.8230687887 | T158: 0.1417597377 | U158: 0.1417597377 | Z158: 36.8608983 | AA158: 0 | AB158: 0 | AC158: 0.00786 | AD158: 0 | AE158: 0 | AF158: =(P158-Z158)*IF((Vcc_max-C158)>$F$4,1,0) -> 3.866359244
A159: 132 | B159: 1.344 | C159: 0.792 | D159: 3.192983074 | E159: 0.1427954804 | F159: 0.1427954804 | G159: 3.203115183 | H159: 3.202306449 | I159: 3.116732675 | J159: 0.0159086568 | K159: 1.571804774 | L159: 0.1427954804 | M159: 3.197148678 | N159: 1.56511109 | O159: 0.1427954804 | P159: 40.74604701 | Q159: 0.1427954804 | R159: 0.828334653 | S159: 0.8283347716 | T159: 0.1427954804 | U159: 0.1427954804 | Z159: 36.87391505 | AA159: 0 | AB159: 0 | AC159: 0.00792 | AD159: 0 | AE159: 0 | AF159: =(P159-Z159)*IF((Vcc_max-C159)>$F$4,1,0) -> 3.872131957
A160: 133 | B160: 1.354181818 | C160: 0.798 | D160: 3.191945889 | E160: 0.1438305199 | F160: 0.1438305199 | G160: 3.202085324 | H160: 3.201275848 | I160: 3.11865086 | J160: 0.01590349441 | K160: 1.579892446 | L160: 0.1438305199 | M160: 3.196114393 | N160: 1.573183237 | O160: 0.1438305199 | P160: 40.76473954 | Q160: 0.1438305199 | R160: 0.8335866373 | S160: 0.8335867565 | T160: 0.1438305199 | U160: 0.1438305199 | Z160: 36.88691489 | AA160: 0 | AB160: 0 | AC160: 0.00798 | AD160: 0 | AE160: 0 | AF160: =(P160-Z160)*IF((Vcc_max-C160)>$F$4,1,0) -> 3.877824646
A161: 134 | B161: 1.364363636 | C161: 0.804 | D161: 3.190907983 | E161: 0.1448648563 | F161: 0.1448648563 | G161: 3.201054719 | H161: 3.200244519 | I161: 3.120494699 | J161: 0.01589832843 | K161: 1.587934596 | L161: 0.1448648563 | M161: 3.195079387 | N161: 1.581210213 | O161: 0.1448648563 | P161: 40.78333648 | Q161: 0.1448648563 | R161: 0.838824653 | S161: 0.8388247729 | T161: 0.1448648563 | U161: 0.1448648563 | Z161: 36.89989784 | AA161: 0 | AB161: 0 | AC161: 0.00804 | AD161: 0 | AE161: 0 | AF161: =(P161-Z161)*IF((Vcc_max-C161)>$F$4,1,0) -> 3.883438644
A162: 135 | B162: 1.374545455 | C162: 0.81 | D162: 3.189869357 | E162: 0.1458984894 | F162: 0.1458984894 | G162: 3.200023373 | H162: 3.199212463 | I162: 3.122266044 | J162: 0.01589315887 | K162: 1.595931447 | L162: 0.1458984894 | M162: 3.194043661 | N162: 1.589192239 | O162: 0.1458984894 | P162: 40.80183917 | Q162: 0.1458984894 | R162: 0.8440487297 | S162: 0.8440488501 | T162: 0.1458984894 | U162: 0.1458984894 | Z162: 36.91286391 | AA162: 0 | AB162: 0 | AC162: 0.0081 | AD162: 0 | AE162: 0 | AF162: =(P162-Z162)*IF((Vcc_max-C162)>$F$4,1,0) -> 3.888975254
A163: 136 | B163: 1.384727273 | C163: 0.816 | D163: 3.188830011 | E163: 0.1469314194 | F163: 0.1469314194 | G163: 3.198991287 | H163: 3.19817968 | I163: 3.1239667 | J163: 0.01588798572 | K163: 1.603883223 | L163: 0.1469314194 | M163: 3.193007215 | N163: 1.597129534 | O163: 0.1469314194 | P163: 40.82024889 | Q163: 0.1469314194 | R163: 0.8492588967 | S163: 0.8492590177 | T163: 0.1469314194 | U163: 0.1469314194 | Z163: 36.92581314 | AA163: 0 | AB163: 0 | AC163: 0.00816 | AD163: 0 | AE163: 0 | AF163: =(P163-Z163)*IF((Vcc_max-C163)>$F$4,1,0) -> 3.894435749
A164: 137 | B164: 1.394909091 | C164: 0.822 | D164: 3.187789946 | E164: 0.1479636462 | F164: 0.1479636462 | G164: 3.197958463 | H164: 3.197146173 | I164: 3.125598427 | J164: 0.01588280898 | K164: 1.611790144 | L164: 0.1479636462 | M164: 3.191970049 | N164: 1.605022316 | O164: 0.1479636462 | P164: 40.83856691 | Q164: 0.1479636462 | R164: 0.8544551832 | S164: 0.8544553048 | T164: 0.1479636462 | U164: 0.1479636462 | Z164: 36.93874554 | AA164: 0 | AB164: 0 | AC164: 0.00822 | AD164: 0 | AE164: 0 | AF164: =(P164-Z164)*IF((Vcc_max-C164)>$F$4,1,0) -> 3.899821376
A165: 138 | B165: 1.405090909 | C165: 0.828 | D165: 3.18674916 | E165: 0.1489951697 | F165: 0.1489951697 | G165: 3.196924903 | H165: 3.19611194 | I165: 3.127162942 | J165: 0.01587762866 | K165: 1.619652431 | L165: 0.1489951697 | M165: 3.190932163 | N165: 1.612870803 | O165: 0.1489951697 | P165: 40.85679449 | Q165: 0.1489951697 | R165: 0.8596376185 | S165: 0.8596377407 | T165: 0.1489951697 | U165: 0.1489951697 | Z165: 36.95166113 | AA165: 0 | AB165: 0 | AC165: 0.00828 | AD165: 0 | AE165: 0 | AF165: =(P165-Z165)*IF((Vcc_max-C165)>$F$4,1,0) -> 3.905133352
A166: 139 | B166: 1.415272727 | C166: 0.834 | D166: 3.185707654 | E166: 0.1500259901 | F166: 0.1500259901 | G166: 3.195890609 | H166: 3.195076983 | I166: 3.128661917 | J166: 0.01587244475 | K166: 1.627470303 | L166: 0.1500259901 | M166: 3.189893557 | N166: 1.620675211 | O166: 0.1500259901 | P166: 40.87493282 | Q166: 0.1500259901 | R166: 0.8648062317 | S166: 0.8648063545 | T166: 0.1500259901 | U166: 0.1500259901 | Z166: 36.96455995 | AA166: 0 | AB166: 0 | AC166: 0.00834 | AD166: 0 | AE166: 0 | AF166: =(P166-Z166)*IF((Vcc_max-C166)>$F$4,1,0) -> 3.910372868
A167: 140 | B167: 1.425454545 | C167: 0.84 | D167: 3.184665429 | E167: 0.1510561072 | F167: 0.1510561072 | G167: 3.194855581 | H167: 3.194041302 | I167: 3.130096982 | J167: 0.01586725726 | K167: 1.635243977 | L167: 0.1510561072 | M167: 3.188854231 | N167: 1.628435755 | O167: 0.1510561072 | P167: 40.8929831 | Q167: 0.1510561072 | R167: 0.8699610521 | S167: 0.8699611755 | T167: 0.1510561072 | U167: 0.1510561072 | Z167: 36.97744201 | AA167: 0 | AB167: 0 | AC167: 0.0084 | AD167: 0 | AE167: 0 | AF167: =(P167-Z167)*IF((Vcc_max-C167)>$F$4,1,0) -> 3.91554109
A168: 141 | B168: 1.435636364 | C168: 0.846 | D168: 3.183622483 | E168: 0.1520855211 | F168: 0.1520855211 | G168: 3.193819822 | H168: 3.193004897 | I168: 3.131469728 | J168: 0.01586206618 | K168: 1.642973671 | L168: 0.1520855211 | M168: 3.187814185 | N168: 1.636152648 | O168: 0.1520855211 | P168: 40.91094648 | Q168: 0.1520855211 | R168: 0.8751021085 | S168: 0.8751022325 | T168: 0.1520855211 | U168: 0.1520855211 | Z168: 36.99030733 | AA168: 0 | AB168: 0 | AC168: 0.00846 | AD168: 0 | AE168: 0 | AF168: =(P168-Z168)*IF((Vcc_max-C168)>$F$4,1,0) -> 3.920639157
A169: 142 | B169: 1.445818182 | C169: 0.852 | D169: 3.182578817 | E169: 0.1531142318 | F169: 0.1531142318 | G169: 3.192783332 | H169: 3.19196777 | I169: 3.132781703 | J169: 0.01585687151 | K169: 1.6506596 | L169: 0.1531142318 | M169: 3.186773419 | N169: 1.643826103 | O169: 0.1531142318 | P169: 40.92882411 | Q169: 0.1531142318 | R169: 0.88022943 | S169: 0.8802295545 | T169: 0.1531142318 | U169: 0.1531142318 | Z169: 37.00315593 | AA169: 0 | AB169: 0 | AC169: 0.00852 | AD169: 0 | AE169: 0 | AF169: =(P169-Z169)*IF((Vcc_max-C169)>$F$4,1,0) -> 3.925668182
A170: 143 | B170: 1.456 | C170: 0.858 | D170: 3.181534431 | E170: 0.1541422393 | F170: 0.1541422393 | G170: 3.191746113 | H170: 3.19092992 | I170: 3.134034419 | J170: 0.01585167326 | K170: 1.658301979 | L170: 0.1541422393 | M170: 3.185731934 | N170: 1.651456333 | O170: 0.1541422393 | P170: 40.9466171 | Q170: 0.1541422393 | R170: 0.8853430455 | S170: 0.8853431706 | T170: 0.1541422393 | U170: 0.1541422393 | Z170: 37.01598785 | AA170: 0 | AB170: 0 | AC170: 0.00858 | AD170: 0 | AE170: 0 | AF170: =(P170-Z170)*IF((Vcc_max-C170)>$F$4,1,0) -> 3.930629256
A171: 144 | B171: 1.466181818 | C171: 0.864 | D171: 3.180489326 | E171: 0.1551695435 | F171: 0.1551695435 | G171: 3.190708166 | H171: 3.189891347 | I171: 3.135229349 | J171: 0.01584647142 | K171: 1.665901022 | L171: 0.1551695435 | M171: 3.184689728 | N171: 1.659043548 | O171: 0.1551695435 | P171: 40.96432654 | Q171: 0.1551695435 | R171: 0.8904429838 | S171: 0.8904431095 | T171: 0.1551695435 | U171: 0.1551695435 | Z171: 37.02880309 | AA171: 0 | AB171: 0 | AC171: 0.00864 | AD171: 0 | AE171: 0 | AF171: =(P171-Z171)*IF((Vcc_max-C171)>$F$4,1,0) -> 3.935523445
A172: 145 | B172: 1.476363636 | C172: 0.87 | D172: 3.1794435 | E172: 0.1561961445 | F172: 0.1561961445 | G172: 3.189669491 | H172: 3.188852052 | I172: 3.136367927 | J172: 0.015841266 | K172: 1.673456942 | L172: 0.1561961445 | M172: 3.183646802 | N172: 1.666587958 | O172: 0.1561961445 | P172: 40.98195348 | Q172: 0.1561961445 | R172: 0.8955292737 | S172: 0.8955293999 | T172: 0.1561961445 | U172: 0.1561961445 | Z172: 37.04160169 | AA172: 0 | AB172: 0 | AC172: 0.0087 | AD172: 0 | AE172: 0 | AF172: =(P172-Z172)*IF((Vcc_max-C172)>$F$4,1,0) -> 3.940351793
A173: 146 | B173: 1.486545455 | C173: 0.876 | D173: 3.178396954 | E173: 0.1572220422 | F173: 0.1572220422 | G173: 3.188630089 | H173: 3.187812036 | I173: 3.137451553 | J173: 0.01583605698 | K173: 1.680969949 | L173: 0.1572220422 | M173: 3.182603156 | N173: 1.674089771 | O173: 0.1572220422 | P173: 40.99949899 | Q173: 0.1572220422 | R173: 0.9006019439 | S173: 0.9006020707 | T173: 0.1572220422 | U173: 0.1572220422 | Z173: 37.05438367 | AA173: 0 | AB173: 0 | AC173: 0.00876 | AD173: 0 | AE173: 0 | AF173: =(P173-Z173)*IF((Vcc_max-C173)>$F$4,1,0) -> 3.945115319
A174: 147 | B174: 1.496727273 | C174: 0.882 | D174: 3.177349689 | E174: 0.1582472367 | F174: 0.1582472367 | G174: 3.187589961 | H174: 3.186771297 | I174: 3.138481592 | J174: 0.01583084439 | K174: 1.688440255 | L174: 0.1582472367 | M174: 3.18155879 | N174: 1.681549196 | O174: 0.1582472367 | P174: 41.01696406 | Q174: 0.1582472367 | R174: 0.905661023 | S174: 0.9056611504 | T174: 0.1582472367 | U174: 0.1582472367 | Z174: 37.06714904 | AA174: 0 | AB174: 0 | AC174: 0.00882 | AD174: 0 | AE174: 0 | AF174: =(P174-Z174)*IF((Vcc_max-C174)>$F$4,1,0) -> 3.949815022
A175: 148 | B175: 1.506909091 | C175: 0.888 | D175: 3.176301703 | E175: 0.1592717279 | F175: 0.1592717279 | G175: 3.186549108 | H175: 3.185729837 | I175: 3.139459373 | J175: 0.0158256282 | K175: 1.695868069 | L175: 0.1592717279 | M175: 3.180513704 | N175: 1.688966438 | O175: 0.1592717279 | P175: 41.03434971 | Q175: 0.1592717279 | R175: 0.9107065398 | S175: 0.9107066677 | T175: 0.1592717279 | U175: 0.1592717279 | Z175: 37.07989783 | AA175: 0 | AB175: 0 | AC175: 0.00888 | AD175: 0 | AE175: 0 | AF175: =(P175-Z175)*IF((Vcc_max-C175)>$F$4,1,0) -> 3.954451878
A176: 149 | B176: 1.517090909 | C176: 0.894 | D176: 3.175252997 | E176: 0.1602955159 | F176: 0.1602955159 | G176: 3.185507529 | H176: 3.184687656 | I176: 3.140386194 | J176: 0.01582040844 | K176: 1.703253599 | L176: 0.1602955159 | M176: 3.179467898 | N176: 1.696341704 | O176: 0.1602955159 | P176: 41.05165691 | Q176: 0.1602955159 | R176: 0.9157385225 | S176: 0.915738651 | T176: 0.1602955159 | U176: 0.1602955159 | Z176: 37.09263006 | AA176: 0 | AB176: 0 | AC176: 0.00894 | AD176: 0 | AE176: 0 | AF176: =(P176-Z176)*IF((Vcc_max-C176)>$F$4,1,0) -> 3.959026844
A177: 150 | B177: 1.527272727 | C177: 0.9 | D177: 3.174203571 | E177: 0.1613186005 | F177: 0.1613186005 | G177: 3.184465226 | H177: 3.183644753 | I177: 3.141263317 | J177: 0.01581518508 | K177: 1.710597053 | L177: 0.1613186005 | M177: 3.178421372 | N177: 1.703675197 | O177: 0.1613186005 | P177: 41.06888662 | Q177: 0.1613186005 | R177: 0.9207569999 | S177: 0.9207571289 | T177: 0.1613186005 | U177: 0.1613186005 | Z177: 37.10534576 | AA177: 0 | AB177: 0 | AC177: 0.009 | AD177: 0 | AE177: 0 | AF177: =(P177-Z177)*IF((Vcc_max-C177)>$F$4,1,0) -> 3.963540854
A178: 151 | B178: 1.537454545 | C178: 0.906 | D178: 3.173153426 | E178: 0.1623409819 | F178: 0.1623409819 | G178: 3.183422199 | H178: 3.18260113 | I178: 3.142091975 | J178: 0.01580995814 | K178: 1.717898636 | L178: 0.1623409819 | M178: 3.177374126 | N178: 1.710967122 | O178: 0.1623409819 | P178: 41.08603977 | Q178: 0.1623409819 | R178: 0.9257620001 | S178: 0.9257621297 | T178: 0.1623409819 | U178: 0.1623409819 | Z178: 37.11804495 | AA178: 0 | AB178: 0 | AC178: 0.00906 | AD178: 0 | AE178: 0 | AF178: =(P178-Z178)*IF((Vcc_max-C178)>$F$4,1,0) -> 3.967994824
A179: 152 | B179: 1.547636364 | C179: 0.912 | D179: 3.17210256 | E179: 0.16336266 | F179: 0.16336266 | G179: 3.182378449 | H179: 3.181556785 | I179: 3.142873369 | J179: 0.01580472761 | K179: 1.725158555 | L179: 0.16336266 | M179: 3.17632616 | N179: 1.718217681 | O179: 0.16336266 | P179: 41.10311729 | Q179: 0.16336266 | R179: 0.9307535516 | S179: 0.9307536818 | T179: 0.16336266 | U179: 0.16336266 | Z179: 37.13072764 | AA179: 0 | AB179: 0 | AC179: 0.00912 | AD179: 0 | AE179: 0 | AF179: =(P179-Z179)*IF((Vcc_max-C179)>$F$4,1,0) -> 3.97238965
A180: 153 | B180: 1.557818182 | C180: 0.918 | D180: 3.171050974 | E180: 0.1643836349 | F180: 0.1643836349 | G180: 3.181333975 | H180: 3.18051172 | I180: 3.143608671 | J180: 0.0157994935 | K180: 1.732377013 | L180: 0.1643836349 | M180: 3.175277475 | N180: 1.725427076 | O180: 0.1643836349 | P180: 41.12012007 | Q180: 0.1643836349 | R180: 0.9357316827 | S180: 0.9357318133 | T180: 0.1643836349 | U180: 0.1643836349 | Z180: 37.14339386 | AA180: 0 | AB180: 0 | AC180: 0.00918 | AD180: 0 | AE180: 0 | AF180: =(P180-Z180)*IF((Vcc_max-C180)>$F$4,1,0) -> 3.976726208
A181: 154 | B181: 1.568 | C181: 0.924 | D181: 3.169998669 | E181: 0.1654039064 | F181: 0.1654039064 | G181: 3.180288779 | H181: 3.179465934 | I181: 3.14429902 | J181: 0.0157942558 | K181: 1.739554214 | L181: 0.1654039064 | M181: 3.174228069 | N181: 1.732595507 | O181: 0.1654039064 | P181: 41.13704899 | Q181: 0.1654039064 | R181: 0.9406964215 | S181: 0.9406965527 | T181: 0.1654039064 | U181: 0.1654039064 | Z181: 37.15604363 | AA181: 0 | AB181: 0 | AC181: 0.00924 | AD181: 0 | AE181: 0 | AF181: =(P181-Z181)*IF((Vcc_max-C181)>$F$4,1,0) -> 3.981005357
A182: 155 | B182: 1.578181818 | C182: 0.93 | D182: 3.168945643 | E182: 0.1664234746 | F182: 0.1664234746 | G182: 3.17924286 | H182: 3.178419427 | I182: 3.144945531 | J182: 0.01578901451 | K182: 1.74669036 | L182: 0.1664234746 | M182: 3.173177943 | N182: 1.739723174 | O182: 0.1664234746 | P182: 41.15390491 | Q182: 0.1664234746 | R182: 0.9456477962 | S182: 0.9456479279 | T182: 0.1664234746 | U182: 0.1664234746 | Z182: 37.16867698 | AA182: 0 | AB182: 0 | AC182: 0.0093 | AD182: 0 | AE182: 0 | AF182: =(P182-Z182)*IF((Vcc_max-C182)>$F$4,1,0) -> 3.985227936
A183: 156 | B183: 1.588363636 | C183: 0.936 | D183: 3.167891897 | E183: 0.1674423395 | F183: 0.1674423395 | G183: 3.178196218 | H183: 3.177372199 | I183: 3.145549287 | J183: 0.01578376964 | K183: 1.753785653 | L183: 0.1674423395 | M183: 3.172127097 | N183: 1.746810275 | O183: 0.1674423395 | P183: 41.17068868 | Q183: 0.1674423395 | R183: 0.9505858348 | S183: 0.9505859671 | T183: 0.1674423395 | U183: 0.1674423395 | Z183: 37.18129392 | AA183: 0 | AB183: 0 | AC183: 0.00936 | AD183: 0 | AE183: 0 | AF183: =(P183-Z183)*IF((Vcc_max-C183)>$F$4,1,0) -> 3.989394767
A184: 157 | B184: 1.598545455 | C184: 0.942 | D184: 3.166837431 | E184: 0.1684605011 | F184: 0.1684605011 | G184: 3.177148855 | H184: 3.176324252 | I184: 3.146111347 | J184: 0.01577852118 | K184: 1.760840291 | L184: 0.1684605011 | M184: 3.171075531 | N184: 1.753857008 | O184: 0.1684605011 | P184: 41.18740113 | Q184: 0.1684605011 | R184: 0.9555105655 | S184: 0.9555106983 | T184: 0.1684605011 | U184: 0.1684605011 | Z184: 37.19389447 | AA184: 0 | AB184: 0 | AC184: 0.00942 | AD184: 0 | AE184: 0 | AF184: =(P184-Z184)*IF((Vcc_max-C184)>$F$4,1,0) -> 3.993506657
A185: 158 | B185: 1.608727273 | C185: 0.948 | D185: 3.165782246 | E185: 0.1694779594 | F185: 0.1694779594 | G185: 3.176100769 | H185: 3.175275583 | I185: 3.146632741 | J185: 0.01577326914 | K185: 1.767854475 | L185: 0.1694779594 | M185: 3.170023245 | N185: 1.76086357 | O185: 0.1694779594 | P185: 41.20404306 | Q185: 0.1694779594 | R185: 0.9604220161 | S185: 0.9604221494 | T185: 0.1694779594 | U185: 0.1694779594 | Z185: 37.20647867 | AA185: 0 | AB185: 0 | AC185: 0.00948 | AD185: 0 | AE185: 0 | AF185: =(P185-Z185)*IF((Vcc_max-C185)>$F$4,1,0) -> 3.997564392
A186: 159 | B186: 1.618909091 | C186: 0.954 | D186: 3.16472634 | E186: 0.1704947144 | F186: 0.1704947144 | G186: 3.175051962 | H186: 3.174226194 | I186: 3.147114473 | J186: 0.0157680135 | K186: 1.774828403 | L186: 0.1704947144 | M186: 3.168970239 | N186: 1.767830155 | O186: 0.1704947144 | P186: 41.22061527 | Q186: 0.1704947144 | R186: 0.9653202145 | S186: 0.9653203484 | T186: 0.1704947144 | U186: 0.1704947144 | Z186: 37.21904652 | AA186: 0 | AB186: 0 | AC186: 0.00954 | AD186: 0 | AE186: 0 | AF186: =(P186-Z186)*IF((Vcc_max-C186)>$F$4,1,0) -> 4.001568744
A187: 160 | B187: 1.629090909 | C187: 0.96 | D187: 3.163669714 | E187: 0.171510766 | F187: 0.171510766 | G187: 3.174002433 | H187: 3.173176085 | I187: 3.147557524 | J187: 0.01576275429 | K187: 1.781762272 | L187: 0.171510766 | M187: 3.167916513 | N187: 1.774756959 | O187: 0.171510766 | P187: 41.23711853 | Q187: 0.171510766 | R187: 0.9702051887 | S187: 0.970205323 | T187: 0.171510766 | U187: 0.171510766 | Z187: 37.23159806 | AA187: 0 | AB187: 0 | AC187: 0.0096 | AD187: 0 | AE187: 0 | AF187: =(P187-Z187)*IF((Vcc_max-C187)>$F$4,1,0) -> 4.00552047
A188: 161 | B188: 1.639272727 | C188: 0.966 | D188: 3.162612369 | E188: 0.1725261143 | F188: 0.1725261143 | G188: 3.172952183 | H188: 3.172125256 | I188: 3.147962849 | J188: 0.01575749148 | K188: 1.788656279 | L188: 0.1725261143 | M188: 3.166862067 | N188: 1.781644176 | O188: 0.1725261143 | P188: 41.25355361 | Q188: 0.1725261143 | R188: 0.9750769663 | S188: 0.9750771011 | T188: 0.1725261143 | U188: 0.1725261143 | Z188: 37.2441333 | AA188: 0 | AB188: 0 | AC188: 0.00966 | AD188: 0 | AE188: 0 | AF188: =(P188-Z188)*IF((Vcc_max-C188)>$F$4,1,0) -> 4.009420309
A189: 162 | B189: 1.649454545 | C189: 0.972 | D189: 3.161554303 | E189: 0.1735407593 | F189: 0.1735407593 | G189: 3.171901212 | H189: 3.171073706 | I189: 3.148331378 | J189: 0.0157522251 | K189: 1.795510618 | L189: 0.1735407593 | M189: 3.165806901 | N189: 1.788491998 | O189: 0.1735407593 | P189: 41.26992125 | Q189: 0.1735407593 | R189: 0.979935575 | S189: 0.9799357104 | T189: 0.1735407593 | U189: 0.1735407593 | Z189: 37.25665226 | AA189: 0 | AB189: 0 | AC189: 0.00972 | AD189: 0 | AE189: 0 | AF189: =(P189-Z189)*IF((Vcc_max-C189)>$F$4,1,0) -> 4.013268986
A190: 163 | B190: 1.659636364 | C190: 0.978 | D190: 3.160495517 | E190: 0.1745547009 | F190: 0.1745547009 | G190: 3.17084952 | H190: 3.170021436 | I190: 3.148664019 | J190: 0.01574695512 | K190: 1.802325483 | L190: 0.1745547009 | M190: 3.164751016 | N190: 1.795300617 | O190: 0.1745547009 | P190: 41.28622218 | Q190: 0.1745547009 | R190: 0.9847810426 | S190: 0.9847811784 | T190: 0.1745547009 | U190: 0.1745547009 | Z190: 37.26915497 | AA190: 0 | AB190: 0 | AC190: 0.00978 | AD190: 0 | AE190: 0 | AF190: =(P190-Z190)*IF((Vcc_max-C190)>$F$4,1,0) -> 4.01706721
A191: 164 | B191: 1.669818182 | C191: 0.984 | D191: 3.159436011 | E191: 0.1755679392 | F191: 0.1755679392 | G191: 3.169797106 | H191: 3.168968445 | I191: 3.148961657 | J191: 0.01574168156 | K191: 1.80910107 | L191: 0.1755679392 | M191: 3.16369441 | N191: 1.802070224 | O191: 0.1755679392 | P191: 41.30245712 | Q191: 0.1755679392 | R191: 0.9896133966 | S191: 0.9896135329 | T191: 0.1755679392 | U191: 0.1755679392 | Z191: 37.28164144 | AA191: 0 | AB191: 0 | AC191: 0.00984 | AD191: 0 | AE191: 0 | AF191: =(P191-Z191)*IF((Vcc_max-C191)>$F$4,1,0) -> 4.020815678
A192: 165 | B192: 1.68 | C192: 0.99 | D192: 3.158375786 | E192: 0.1765804741 | F192: 0.1765804741 | G192: 3.168743972 | H192: 3.167914735 | I192: 3.149225154 | J192: 0.01573640441 | K192: 1.815837568 | L192: 0.1765804741 | M192: 3.162637084 | N192: 1.808801009 | O192: 0.1765804741 | P192: 41.31862678 | Q192: 0.1765804741 | R192: 0.9944326645 | S192: 0.9944328013 | T192: 0.1765804741 | U192: 0.1765804741 | Z192: 37.29411171 | AA192: 0 | AB192: 0 | AC192: 0.0099 | AD192: 0 | AE192: 0 | AF192: =(P192-Z192)*IF((Vcc_max-C192)>$F$4,1,0) -> 4.024515069
A193: 166 | B193: 1.690181818 | C193: 0.996 | D193: 3.15731484 | E193: 0.1775923056 | F193: 0.1775923056 | G193: 3.167690117 | H193: 3.166860304 | I193: 3.149455351 | J193: 0.01573112368 | K193: 1.822535171 | L193: 0.1775923056 | M193: 3.161579038 | N193: 1.81549316 | O193: 0.1775923056 | P193: 41.33473183 | Q193: 0.1775923056 | R193: 0.9992388738 | S193: 0.9992390111 | T193: 0.1775923056 | U193: 0.1775923056 | Z193: 37.30656578 | AA193: 0 | AB193: 0 | AC193: 0.00996 | AD193: 0 | AE193: 0 | AF193: =(P193-Z193)*IF((Vcc_max-C193)>$F$4,1,0) -> 4.028166051
A194: 167 | B194: 1.700363636 | C194: 1.002 | D194: 3.156253174 | E194: 0.1786034338 | F194: 0.1786034338 | G194: 3.166635541 | H194: 3.165805153 | I194: 3.149653068 | J194: 0.01572583936 | K194: 1.829194068 | L194: 0.1786034338 | M194: 3.160520272 | N194: 1.822146866 | O194: 0.1786034338 | P194: 41.35077296 | Q194: 0.1786034338 | R194: 1.004032052 | S194: 1.00403219 | T194: 0.1786034338 | U194: 0.1786034338 | Z194: 37.31900368 | AA194: 0 | AB194: 0 | AC194: 0.01002 | AD194: 0 | AE194: 0 | AF194: =(P194-Z194)*IF((Vcc_max-C194)>$F$4,1,0) -> 4.031769278
A195: 168 | B195: 1.710545455 | C195: 1.008 | D195: 3.155190789 | E195: 0.1796138586 | F195: 0.1796138586 | G195: 3.165580245 | H195: 3.164749282 | I195: 3.149819103 | J195: 0.01572055145 | K195: 1.835814449 | L195: 0.1796138586 | M195: 3.159460786 | N195: 1.828762313 | O195: 0.1796138586 | P195: 41.36675083 | Q195: 0.1796138586 | R195: 1.008812226 | S195: 1.008812364 | T195: 0.1796138586 | U195: 0.1796138586 | Z195: 37.33142544 | AA195: 0 | AB195: 0 | AC195: 0.01008 | AD195: 0 | AE195: 0 | AF195: =(P195-Z195)*IF((Vcc_max-C195)>$F$4,1,0) -> 4.035325389
A196: 169 | B196: 1.720727273 | C196: 1.014 | D196: 3.154127683 | E196: 0.18062358 | F196: 0.18062358 | G196: 3.164524228 | H196: 3.163692691 | I196: 3.149954235 | J196: 0.01571525996 | K196: 1.842396503 | L196: 0.18062358 | M196: 3.15840058 | N196: 1.835339689 | O196: 0.18062358 | P196: 41.38266608 | Q196: 0.18062358 | R196: 1.013579424 | S196: 1.013579563 | T196: 0.18062358 | U196: 0.18062358 | Z196: 37.34383107 | AA196: 0 | AB196: 0 | AC196: 0.01014 | AD196: 0 | AE196: 0 | AF196: =(P196-Z196)*IF((Vcc_max-C196)>$F$4,1,0) -> 4.038835013
A197: 170 | B197: 1.730909091 | C197: 1.02 | D197: 3.153063857 | E197: 0.181632598 | F197: 0.181632598 | G197: 3.16346749 | H197: 3.16263538 | I197: 3.150059224 | J197: 0.01570996488 | K197: 1.848940417 | L197: 0.181632598 | M197: 3.157339654 | N197: 1.841879177 | O197: 0.181632598 | P197: 41.39851935 | Q197: 0.181632598 | R197: 1.018333672 | S197: 1.018333811 | T197: 0.181632598 | U197: 0.181632598 | Z197: 37.35622059 | AA197: 0 | AB197: 0 | AC197: 0.0102 | AD197: 0 | AE197: 0 | AF197: =(P197-Z197)*IF((Vcc_max-C197)>$F$4,1,0) -> 4.042298765
A198: 171 | B198: 1.741090909 | C198: 1.026 | D198: 3.151999311 | E198: 0.1826409127 | F198: 0.1826409127 | G198: 3.162410032 | H198: 3.161577348 | I198: 3.15013481 | J198: 0.01570466622 | K198: 1.855446377 | L198: 0.1826409127 | M198: 3.156278008 | N198: 1.848380963 | O198: 0.1826409127 | P198: 41.41431127 | Q198: 0.1826409127 | R198: 1.023074998 | S198: 1.023075138 | T198: 0.1826409127 | U198: 0.1826409127 | Z198: 37.36859403 | AA198: 0 | AB198: 0 | AC198: 0.01026 | AD198: 0 | AE198: 0 | AF198: =(P198-Z198)*IF((Vcc_max-C198)>$F$4,1,0) -> 4.045717246
A199: 172 | B199: 1.751272727 | C199: 1.032 | D199: 3.150934046 | E199: 0.1836485239 | F199: 0.1836485239 | G199: 3.161351854 | H199: 3.160518597 | I199: 3.150181714 | J199: 0.01569936396 | K199: 1.86191457 | L199: 0.1836485239 | M199: 3.155215642 | N199: 1.85484523 | O199: 0.1836485239 | P199: 41.43004245 | Q199: 0.1836485239 | R199: 1.027803429 | S199: 1.02780357 | T199: 0.1836485239 | U199: 0.1836485239 | Z199: 37.3809514 | AA199: 0 | AB199: 0 | AC199: 0.01032 | AD199: 0 | AE199: 0 | AF199: =(P199-Z199)*IF((Vcc_max-C199)>$F$4,1,0) -> 4.049091047
A200: 173 | B200: 1.761454545 | C200: 1.038 | D200: 3.14986806 | E200: 0.1846554318 | F200: 0.1846554318 | G200: 3.160292955 | H200: 3.159459125 | I200: 3.15020064 | J200: 0.01569405813 | K200: 1.868345181 | L200: 0.1846554318 | M200: 3.154152557 | N200: 1.861272159 | O200: 0.1846554318 | P200: 41.44571348 | Q200: 0.1846554318 | R200: 1.032518992 | S200: 1.032519133 | T200: 0.1846554318 | U200: 0.1846554318 | Z200: 37.39329273 | AA200: 0 | AB200: 0 | AC200: 0.01038 | AD200: 0 | AE200: 0 | AF200: =(P200-Z200)*IF((Vcc_max-C200)>$F$4,1,0) -> 4.052420748
A201: 174 | B201: 1.771636364 | C201: 1.044 | D201: 3.148801354 | E201: 0.1856616362 | F201: 0.1856616362 | G201: 3.159233336 | H201: 3.158398934 | I201: 3.150192273 | J201: 0.0156887487 | K201: 1.874738393 | L201: 0.1856616362 | M201: 3.153088751 | N201: 1.867661934 | O201: 0.1856616362 | P201: 41.46132495 | Q201: 0.1856616362 | R201: 1.037221714 | S201: 1.037221855 | T201: 0.1856616362 | U201: 0.1856616362 | Z201: 37.40561804 | AA201: 0 | AB201: 0 | AC201: 0.01044 | AD201: 0 | AE201: 0 | AF201: =(P201-Z201)*IF((Vcc_max-C201)>$F$4,1,0) -> 4.055706915
A202: 175 | B202: 1.781818182 | C202: 1.05 | D202: 3.147733929 | E202: 0.1866671372 | F202: 0.1866671372 | G202: 3.158172997 | H202: 3.157338022 | I202: 3.150157283 | J202: 0.0156834357 | K202: 1.881094389 | L202: 0.1866671372 | M202: 3.152024225 | N202: 1.874014734 | O202: 0.1866671372 | P202: 41.47687745 | Q202: 0.1866671372 | R202: 1.041911622 | S202: 1.041911764 | T202: 0.1866671372 | U202: 0.1866671372 | Z202: 37.41792734 | AA202: 0 | AB202: 0 | AC202: 0.0105 | AD202: 0 | AE202: 0 | AF202: =(P202-Z202)*IF((Vcc_max-C202)>$F$4,1,0) -> 4.058950105
A203: 176 | B203: 1.792 | C203: 1.056 | D203: 3.146665783 | E203: 0.1876719348 | F203: 0.1876719348 | G203: 3.157111937 | H203: 3.15627639 | I203: 3.15009632 | J203: 0.0156781191 | K203: 1.887413351 | L203: 0.1876719348 | M203: 3.150958979 | N203: 1.880330739 | O203: 0.1876719348 | P203: 41.49237153 | Q203: 0.1876719348 | R203: 1.046588742 | S203: 1.046588885 | T203: 0.1876719348 | U203: 0.1876719348 | Z203: 37.43022067 | AA203: 0 | AB203: 0 | AC203: 0.01056 | AD203: 0 | AE203: 0 | AF203: =(P203-Z203)*IF((Vcc_max-C203)>$F$4,1,0) -> 4.062150863
... 1824 more rows

Sheet Res EIA Tables
A1: Standard EIA Decade Resistor Values
A3: 0.2 | B3: 0.1 | C3: 0.05 | D3: 0.02 | E3: 0.01 | F3: 0.5%, 0.25%, 0.1%
A4: E6 | B4: E12 | C4: E24 | D4: E48 | E4: E96 | F4: E192
A5: 100 | B5: 100 | C5: 100 | D5: 100 | E5: 100 | F5: 100
F6: 101
E7: 102 | F7: 102
F8: 104
D9: 105 | E9: 105 | F9: 105
F10: 106
E11: 107 | F11: 107
F12: 109
C13: 110 | D13: 110 | E13: 110 | F13: 110
F14: 111
E15: 113 | F15: 113
F16: 114
D17: 115 | E17: 115 | F17: 115
F18: 117
E19: 118 | F19: 118
F20: 120
B21: 120 | C21: 120 | D21: 121 | E21: 121 | F21: 121
F22: 123
E23: 124 | F23: 124
F24: 126
D25: 127 | E25: 127 | F25: 127
F26: 129
E27: 130 | F27: 130
F28: 132
C29: 130 | D29: 133 | E29: 133 | F29: 133
F30: 135
E31: 137 | F31: 137
F32: 138
D33: 140 | E33: 140 | F33: 140
F34: 142
E35: 143 | F35: 143
F36: 145
A37: 150 | B37: 150 | C37: 150 | D37: 147 | E37: 147 | F37: 147
F38: 149
E39: 150 | F39: 150
F40: 152
D41: 154 | E41: 154 | F41: 154
F42: 156
E43: 158 | F43: 158
F44: 160
C45: 160 | D45: 162 | E45: 162 | F45: 162
F46: 164
E47: 165 | F47: 165
F48: 167
D49: 169 | E49: 169 | F49: 169
F50: 172
E51: 174 | F51: 174
F52: 176
B53: 180 | C53: 180 | D53: 178 | E53: 178 | F53: 178
F54: 180
E55: 182 | F55: 182
F56: 184
D57: 187 | E57: 187 | F57: 187
F58: 189
E59: 191 | F59: 191
F60: 193
C61: 200 | D61: 196 | E61: 196 | F61: 196
F62: 198
E63: 200 | F63: 200
F64: 203
D65: 205 | E65: 205 | F65: 205
F66: 208
E67: 210 | F67: 210
F68: 213
A69: 220 | B69: 220 | C69: 220 | D69: 215 | E69: 215 | F69: 215
F70: 218
E71: 221 | F71: 221
F72: 223
D73: 226 | E73: 226 | F73: 226
F74: 229
E75: 232 | F75: 232
F76: 234
C77: 240 | D77: 237 | E77: 237 | F77: 237
F78: 240
E79: 243 | F79: 243
F80: 246
D81: 249 | E81: 249 | F81: 249
F82: 252
E83: 255 | F83: 255
F84: 258
B85: 270 | C85: 270 | D85: 261 | E85: 261 | F85: 261
F86: 264
E87: 267 | F87: 267
F88: 271
D89: 274 | E89: 274 | F89: 274
F90: 277
E91: 280 | F91: 280
F92: 284
C93: 300 | D93: 287 | E93: 287 | F93: 287
F94: 291
E95: 294 | F95: 294
F96: 298
D97: 301 | E97: 301 | F97: 301
F98: 305
E99: 309 | F99: 309
F100: 312
A101: 330 | B101: 330 | C101: 330 | D101: 316 | E101: 316 | F101: 316
F102: 320
E103: 324 | F103: 324
F104: 328
D105: 332 | E105: 332 | F105: 332
F106: 336
E107: 340 | F107: 340
F108: 344
C109: 360 | D109: 348 | E109: 348 | F109: 348
F110: 352
E111: 357 | F111: 357
F112: 361
D113: 365 | E113: 365 | F113: 365
F114: 370
E115: 374 | F115: 374
F116: 379
B117: 390 | C117: 390 | D117: 383 | E117: 383 | F117: 383
F118: 388
E119: 392 | F119: 392
F120: 397
D121: 402 | E121: 402 | F121: 402
F122: 407
E123: 412 | F123: 412
F124: 417
C125: 430 | D125: 422 | E125: 422 | F125: 422
F126: 427
E127: 432 | F127: 432
F128: 437
D129: 442 | E129: 442 | F129: 442
F130: 448
E131: 453 | F131: 453
F132: 459
A133: 470 | B133: 470 | C133: 470 | D133: 464 | E133: 464 | F133: 464
F134: 470
E135: 475 | F135: 475
F136: 481
D137: 487 | E137: 487 | F137: 487
F138: 493
E139: 499 | F139: 499
F140: 505
C141: 510 | D141: 511 | E141: 511 | F141: 511
F142: 517
E143: 523 | F143: 523
F144: 530
D145: 536 | E145: 536 | F145: 536
F146: 542
E147: 549 | F147: 549
F148: 556
B149: 560 | C149: 560 | D149: 562 | E149: 562 | F149: 562
F150: 569
E151: 576 | F151: 576
F152: 583
D153: 590 | E153: 590 | F153: 590
F154: 597
E155: 604 | F155: 604
F156: 612
C157: 620 | D157: 619 | E157: 619 | F157: 619
F158: 626
E159: 634 | F159: 634
F160: 642
D161: 649 | E161: 649 | F161: 649
F162: 657
E163: 665 | F163: 665
F164: 673
A165: 680 | B165: 680 | C165: 680 | D165: 681 | E165: 681 | F165: 681
F166: 690
E167: 698 | F167: 698
F168: 706
D169: 715 | E169: 715 | F169: 715
F170: 723
E171: 732 | F171: 732
F172: 741
C173: 750 | D173: 750 | E173: 750 | F173: 750
F174: 759
E175: 768 | F175: 768
F176: 777
D177: 787 | E177: 787 | F177: 787
F178: 796
E179: 806 | F179: 806
F180: 816
B181: 820 | C181: 820 | D181: 825 | E181: 825 | F181: 825
F182: 835
E183: 845 | F183: 845
F184: 856
D185: 866 | E185: 866 | F185: 866
F186: 876
E187: 887 | F187: 887
F188: 898
C189: 910 | D189: 909 | E189: 909 | F189: 909
F190: 920
E191: 931 | F191: 931
F192: 942
D193: 953 | E193: 953 | F193: 953
F194: 965
E195: 976 | F195: 976
F196: 988
A197: 1000 | B197: 1000 | C197: 1000 | D197: 1000 | E197: 1000 | F197: 1000 | G197: End Values Required for Processing

Sheet Cap Tables
A1: Standard Capacitor Values
A3: pF | B3: nF | C3: µF | D3: mF
A4: 1 | B4: 1 | C4: 1 | D4: 1
A5: 1.1 | B5: 1.1
A6: 1.2 | B6: 1.2
A7: 1.3 | B7: 1.3
A8: 1.5 | B8: 1.5 | C8: 1.5 | D8: 1.5
A9: 1.6 | B9: 1.6
A10: 1.8 | B10: 1.8
A11: 2 | B11: 2
A12: 2.2 | B12: 2.2 | C12: 2.2 | D12: 2.2
A13: 2.4 | B13: 2.4
A14: 2.7 | B14: 2.7
A15: 3 | B15: 3
A16: 3.3 | B16: 3.3 | C16: 3.3 | D16: 3.3
A17: 3.6 | B17: 3.6 | C17: =C18 -> 4.7
A18: 3.9 | B18: 3.9 | C18: =C19 -> 4.7
A19: 4.3 | B19: 4.3 | C19: =C20 -> 4.7
A20: 4.7 | B20: 4.7 | C20: 4.7 | D20: 4.7
A21: 5.1 | B21: 5.1 | C21: =C22 -> 6.8
A22: 5.6 | B22: 5.6 | C22: =C23 -> 6.8
A23: 6.2 | B23: 6.2 | C23: =C24 -> 6.8
A24: 6.8 | B24: 6.8 | C24: 6.8 | D24: 6.8
A25: 7.5 | B25: 7.5 | C25: =C26 -> 10
A26: 8.2 | B26: 8.2 | C26: =C27 -> 10
A27: 9.1 | B27: 9.1 | C27: =C28 -> 10
A28: 10 | B28: 10 | C28: 10 | D28: 10
A29: 11 | B29: =B30 -> 15 | C29: 15
A30: 12 | B30: 15 | C30: 15
A31: 13 | B31: 15 | C31: 15
A32: 15 | B32: 15 | C32: 15
A33: 16 | B33: =B34 -> 22 | C33: 22
A34: 18 | B34: 22 | C34: 22
A35: 20 | B35: 22 | C35: 22
A36: 22 | B36: 22 | C36: 22
A37: 24 | B37: =B38 -> 33 | C37: 33
A38: 27 | B38: 33 | C38: 33
A39: 30 | B39: 33 | C39: 33
A40: 33 | B40: 33 | C40: 33
A41: 36 | B41: =B42 -> 47 | C41: 47
A42: 39 | B42: 47 | C42: 47
A43: 43 | B43: 47 | C43: 47
A44: 47 | B44: 47 | C44: 47
A45: 51 | B45: =B46 -> 68 | C45: 68
A46: 56 | B46: 68 | C46: 68
A47: 62 | B47: 68 | C47: 68
A48: 68 | B48: 68 | C48: 68
A49: 75 | B49: =B50 -> 100 | C49: 100
A50: 82 | B50: 100 | C50: 100
A51: 91 | B51: 100 | C51: 100
A52: 100 | B52: 100 | C52: 100
A53: 110 | B53: =B54 -> 150 | C53: 150
A54: 120 | B54: 150 | C54: 150
A55: 130 | B55: 150 | C55: 150
A56: 150 | B56: 150 | C56: 150
A57: 160 | B57: =B58 -> 220 | C57: 220
A58: 180 | B58: 220 | C58: 220
A59: 200 | B59: 220 | C59: 220
A60: 220 | B60: 220 | C60: 220
A61: 240 | B61: =B62 -> 330 | C61: 330
A62: 270 | B62: 330 | C62: 330
A63: 300 | B63: 330 | C63: 330
A64: 330 | B64: 330 | C64: 330
A65: 360 | B65: =B66 -> 470 | C65: 470
A66: 390 | B66: 470 | C66: 470
A67: 430 | B67: 470 | C67: 470
A68: 470 | B68: 470 | C68: 470
A69: 510 | B69: =B70 -> 680 | C69: 680
A70: 560 | B70: 680 | C70: 680
A71: 620 | B71: 680 | C71: 680
A72: 680 | B72: 680 | C72: 680
A73: 750 | B73: =B74 -> 1000 | C73: =C74 -> 1000
A74: 820 | B74: =B75 -> 1000 | C74: =C75 -> 1000
A75: 910 | B75: 1000 | C75: 1000
